Department family,Entity,Date,Expense type,Expense area,Supplier,Transaction number,Amount,VAT registration number
Department for Business Energy and Industrial Strategy,Intellectual Property Office,23/12/2021,Staff Costs,People Places & Serv Directorate,Personal expenses,AH000000336,567.00,Not Applicable
Department for Business Energy and Industrial Strategy,Intellectual Property Office,16/12/2021,Supporting UK Business,Innovation Directorate,Laura J Nolan,IPACC0011,"3,790.00",Not Applicable
Department for Business Energy and Industrial Strategy,Intellectual Property Office,08/12/2021,Supporting UK Business,Innovation Directorate,Paca Pots Ltd,IPACC0012,"4,500.00",Not Applicable
Department for Business Energy and Industrial Strategy,Intellectual Property Office,17/12/2021,Supporting UK Business,Innovation Directorate,FluoretiQ Limited,IPACC0013,"4,000.00",Not Applicable
Department for Business Energy and Industrial Strategy,Intellectual Property Office,17/12/2021,Supporting UK Business,Innovation Directorate,Sage Qualifications Ltd,IPACC0014,"1,547.50",Not Applicable
Department for Business Energy and Industrial Strategy,Intellectual Property Office,01/12/2021,Pay Costs,Patent Directorate,Acorn Recruitment Ltd,992991,693.08,Not Applicable
Department for Business Energy and Industrial Strategy,Intellectual Property Office,15/12/2021,Pay Costs,Patent Directorate,Acorn Recruitment Ltd,994046,711.82,Not Applicable
Department for Business Energy and Industrial Strategy,Intellectual Property Office,21/12/2021,Pay Costs,Patent Directorate,Acorn Recruitment Ltd,994543,693.08,Not Applicable
Department for Business Energy and Industrial Strategy,Intellectual Property Office,31/12/2021,Pay Costs,Patent Directorate,Acorn Recruitment Ltd,995062,693.08,Not Applicable
Department for Business Energy and Industrial Strategy,Intellectual Property Office,09/12/2021,Office Supplies,People Places & Serv Directorate,Banner Group Limited,7395680A,664.22,Not Applicable
Department for Business Energy and Industrial Strategy,Intellectual Property Office,06/12/2021,Office Supplies,People Places & Serv Directorate,Banner Group Limited,7656037A,"1,433.78",Not Applicable
Department for Business Energy and Industrial Strategy,Intellectual Property Office,31/12/2021,Telecoms,IT Directorate,British  Telecom,04842270AC01-DEC,"5,363.19",Not Applicable
Department for Business Energy and Industrial Strategy,Intellectual Property Office,31/12/2021,Telecoms,IT Directorate,British  Telecom,VP02239170-DEC21,"1,484.66",Not Applicable
Department for Business Energy and Industrial Strategy,Intellectual Property Office,31/12/2021,Telecoms,IT Directorate,British  Telecom,VP02239170-NOV21,"1,629.78",Not Applicable
Department for Business Energy and Industrial Strategy,Intellectual Property Office,31/12/2021,Telecoms,IT Directorate,British  Telecom,WM42102445-OCT21,"2,968.00",Not Applicable
Department for Business Energy and Industrial Strategy,Intellectual Property Office,02/12/2021,Office Supplies,Patent Directorate,British Library,7000275953,"2,930.94",Not Applicable
Department for Business Energy and Industrial Strategy,Intellectual Property Office,21/12/2021,Staff Costs,People Places & Serv Directorate,British Red Cross,N1431498,525.60,Not Applicable
Department for Business Energy and Industrial Strategy,Intellectual Property Office,09/12/2021,Miscellaneous Expenses General,People Places & Serv Directorate,British Standards Institution BSI,95883440,"3,519.60",Not Applicable
Department for Business Energy and Industrial Strategy,Intellectual Property Office,20/12/2021,Miscellaneous Expenses General,People Places & Serv Directorate,Cabinet Office,3813025,"1,117.20",Not Applicable
Department for Business Energy and Industrial Strategy,Intellectual Property Office,02/12/2021,Staff Costs,People Places & Serv Directorate,Computeraid Ltd,22564,"6,636.00",Not Applicable
Department for Business Energy and Industrial Strategy,Intellectual Property Office,20/12/2021,Staff Costs,People Places & Serv Directorate,Computeraid Ltd,22576,"3,606.00",Not Applicable
Department for Business Energy and Industrial Strategy,Intellectual Property Office,14/12/2021,Accommodation,People Places & Serv Directorate,Corona Energy,16631742,"3,215.15",Not Applicable
Department for Business Energy and Industrial Strategy,Intellectual Property Office,07/12/2021,Marketing & Publicity,Innovation Directorate,CPD Certification Service Ltd,7481,"2,574.00",Not Applicable
Department for Business Energy and Industrial Strategy,Intellectual Property Office,31/12/2021,Supporting UK Business,Innovation Directorate,Dehns,1009264,"2,500.00",Not Applicable
Department for Business Energy and Industrial Strategy,Intellectual Property Office,13/12/2021,Postage & Delivery Costs,People Places & Serv Directorate,DHL International (UK) Ltd,BRSR005315713,"4,257.78",Not Applicable
Department for Business Energy and Industrial Strategy,Intellectual Property Office,13/12/2021,Postage & Delivery Costs,People Places & Serv Directorate,DHL International (UK) Ltd,BRSR005356822,"3,471.72",Not Applicable
Department for Business Energy and Industrial Strategy,Intellectual Property Office,14/12/2021,Postage & Delivery Costs,People Places & Serv Directorate,DHL International (UK) Ltd,BRSR005377157,"1,992.66",Not Applicable
Department for Business Energy and Industrial Strategy,Intellectual Property Office,23/12/2021,Postage & Delivery Costs,People Places & Serv Directorate,DHL International (UK) Ltd,BRSR005400562,"6,702.31",Not Applicable
Department for Business Energy and Industrial Strategy,Intellectual Property Office,03/12/2021,Accommodation,People Places & Serv Directorate,Pro Investments Limited,172066,"24,750.00",Not Applicable
Department for Business Energy and Industrial Strategy,Intellectual Property Office,03/12/2021,Accommodation,People Places & Serv Directorate,Pro Investments Limited,172067,"1,803.71",Not Applicable
Department for Business Energy and Industrial Strategy,Intellectual Property Office,31/12/2021,Supporting UK Business,Innovation Directorate,Greaves Brewster LLP,32872,"2,500.00",Not Applicable
Department for Business Energy and Industrial Strategy,Intellectual Property Office,01/12/2021,Pay Costs,Projects,Hays Specialist Recruitment,1011801243,"3,541.26",Not Applicable
Department for Business Energy and Industrial Strategy,Intellectual Property Office,08/12/2021,Pay Costs,Copyright and Enforcement Directorate,Home  Office,2589743,"4,622.40",Not Applicable
Department for Business Energy and Industrial Strategy,Intellectual Property Office,03/12/2021,Pay Costs,Copyright and Enforcement Directorate,Home  Office,2590651,"2,880.57",Not Applicable
Department for Business Energy and Industrial Strategy,Intellectual Property Office,21/12/2021,Pay Costs,Copyright and Enforcement Directorate,Home  Office,2591787,"2,403.51",Not Applicable
Department for Business Energy and Industrial Strategy,Intellectual Property Office,21/12/2021,Pay Costs,Copyright and Enforcement Directorate,Home  Office,2591806,"4,622.40",Not Applicable
Department for Business Energy and Industrial Strategy,Intellectual Property Office,31/12/2021,Supporting UK Business,Innovation Directorate,IP Pragmatics,2831,"2,500.00",Not Applicable
Department for Business Energy and Industrial Strategy,Intellectual Property Office,07/12/2021,Travel & Subsistence,Innovation Directorate,Zenith,285361,679.21,Not Applicable
Department for Business Energy and Industrial Strategy,Intellectual Property Office,09/12/2021,Legal & Hearings,Trade Mark Directorate,Marten Walsh Cherer Ltd,119260,569.45,Not Applicable
Department for Business Energy and Industrial Strategy,Intellectual Property Office,09/12/2021,Legal & Hearings,Trade Mark Directorate,Marten Walsh Cherer Ltd,119267,"8,190.04",Not Applicable
Department for Business Energy and Industrial Strategy,Intellectual Property Office,09/12/2021,Legal & Hearings,Trade Mark Directorate,Marten Walsh Cherer Ltd,119523,977.04,Not Applicable
Department for Business Energy and Industrial Strategy,Intellectual Property Office,31/12/2021,Legal & Hearings,Trade Mark Directorate,Marten Walsh Cherer Ltd,119734,"1,328.76",Not Applicable
Department for Business Energy and Industrial Strategy,Intellectual Property Office,22/12/2021,Legal & Hearings,Trade Mark Directorate,Marten Walsh Cherer Ltd,119738,"1,485.48",Not Applicable
Department for Business Energy and Industrial Strategy,Intellectual Property Office,31/12/2021,Legal & Hearings,Trade Mark Directorate,Marten Walsh Cherer Ltd,119740,"5,286.18",Not Applicable
Department for Business Energy and Industrial Strategy,Intellectual Property Office,31/12/2021,Legal & Hearings,Trade Mark Directorate,Marten Walsh Cherer Ltd,119747,"3,130.98",Not Applicable
Department for Business Energy and Industrial Strategy,Intellectual Property Office,08/12/2021,Miscellaneous Expenses General,People Places & Serv Directorate,MyCSP Ltd,19109460,"2,040.00",Not Applicable
Department for Business Energy and Industrial Strategy,Intellectual Property Office,08/12/2021,Miscellaneous Expenses General,People Places & Serv Directorate,MyCSP Ltd,19109826,"-2,040.00",Not Applicable
Department for Business Energy and Industrial Strategy,Intellectual Property Office,31/12/2021,Miscellaneous Expenses General,People Places & Serv Directorate,MyCSP Ltd,19109944,"2,040.00",Not Applicable
Department for Business Energy and Industrial Strategy,Intellectual Property Office,13/12/2021,Miscellaneous Expenses General,People Places & Serv Directorate,MyCSP Ltd,19109945,"1,020.00",Not Applicable
Department for Business Energy and Industrial Strategy,Intellectual Property Office,16/12/2021,Information Technology,People Places & Serv Directorate,Quadient UK Limited,9000335-15DEC21,"10,000.00",Not Applicable
Department for Business Energy and Industrial Strategy,Intellectual Property Office,03/12/2021,Postage & Delivery Costs,People Places & Serv Directorate,Quadient UK Limited,NE9000335-DEC21,"10,000.00",Not Applicable
Department for Business Energy and Industrial Strategy,Intellectual Property Office,31/12/2021,Pay Costs,People Places & Serv Directorate,C2W Support Limited,34752,949.00,Not Applicable
Department for Business Energy and Industrial Strategy,Intellectual Property Office,13/12/2021,Pay Costs,People Places & Serv Directorate,Park Retail Ltd t/a Love2reward,56342891,"2,606.80",Not Applicable
Department for Business Energy and Industrial Strategy,Intellectual Property Office,13/12/2021,Supporting UK Business,Patent Directorate,Park Retail Ltd t/a Love2reward,56342891,156.80,Not Applicable
Department for Business Energy and Industrial Strategy,Intellectual Property Office,13/12/2021,Pay Costs,People Places & Serv Directorate,Park Retail Ltd t/a Love2reward,56394910,"1,891.40",Not Applicable
Department for Business Energy and Industrial Strategy,Intellectual Property Office,13/12/2021,Supporting UK Business,Patent Directorate,Park Retail Ltd t/a Love2reward,56394910,284.20,Not Applicable
Department for Business Energy and Industrial Strategy,Intellectual Property Office,13/12/2021,Pay Costs,People Places & Serv Directorate,Park Retail Ltd t/a Love2reward,56453220,"4,022.90",Not Applicable
Department for Business Energy and Industrial Strategy,Intellectual Property Office,13/12/2021,Supporting UK Business,Patent Directorate,Park Retail Ltd t/a Love2reward,56453220,245.00,Not Applicable
Department for Business Energy and Industrial Strategy,Intellectual Property Office,17/12/2021,Pay Costs,People Places & Serv Directorate,Park Retail Ltd t/a Love2reward,56489163,"6,027.00",Not Applicable
Department for Business Energy and Industrial Strategy,Intellectual Property Office,16/12/2021,Pay Costs,People Places & Serv Directorate,Park Retail Ltd t/a Love2reward,56530149,"4,566.80",Not Applicable
Department for Business Energy and Industrial Strategy,Intellectual Property Office,16/12/2021,Pay Costs,People Places & Serv Directorate,Park Retail Ltd t/a Love2reward,56581105,"3,214.40",Not Applicable
Department for Business Energy and Industrial Strategy,Intellectual Property Office,21/12/2021,Information Technology,IT Directorate,Phoenix Software Ltd,OP/I909085,"24,704.58",Not Applicable
Department for Business Energy and Industrial Strategy,Intellectual Property Office,13/12/2021,Information Technology,IT Directorate,Phoenix Software Ltd,OP/I913495,"8,374.68",Not Applicable
Department for Business Energy and Industrial Strategy,Intellectual Property Office,13/12/2021,Information Technology,IT Directorate,Phoenix Software Ltd,OP/I916190,"3,045.60",Not Applicable
Department for Business Energy and Industrial Strategy,Intellectual Property Office,21/12/2021,Information Technology,IT Directorate,Phoenix Software Ltd,OP/I916810,"64,877.38",Not Applicable
Department for Business Energy and Industrial Strategy,Intellectual Property Office,14/12/2021,Supporting UK Business,Innovation Directorate,Potter Clarkson LLP,987889,"2,500.00",Not Applicable
Department for Business Energy and Industrial Strategy,Intellectual Property Office,14/12/2021,Supporting UK Business,Innovation Directorate,Potter Clarkson LLP,989451,"2,500.00",Not Applicable
Department for Business Energy and Industrial Strategy,Intellectual Property Office,22/12/2021,Supporting UK Business,Innovation Directorate,Potter Clarkson LLP,990371,"2,500.00",Not Applicable
Department for Business Energy and Industrial Strategy,Intellectual Property Office,31/12/2021,Supporting UK Business,Innovation Directorate,Potter Clarkson LLP,990787,"2,500.00",Not Applicable
Department for Business Energy and Industrial Strategy,Intellectual Property Office,31/12/2021,Information Technology,IT Directorate,Specialist Computer Centres Plc,OP/N085446,"12,345.14",Not Applicable
Department for Business Energy and Industrial Strategy,Intellectual Property Office,31/12/2021,Information Technology,IT Directorate,Specialist Computer Centres Plc,OP/N085447,"11,463.36",Not Applicable
Department for Business Energy and Industrial Strategy,Intellectual Property Office,07/12/2021,Accommodation,People Places & Serv Directorate,Total Security Protection Ltd,39919,-645.00,Not Applicable
Department for Business Energy and Industrial Strategy,Intellectual Property Office,07/12/2021,Accommodation,People Places & Serv Directorate,Total Security Protection Ltd,40264,"2,737.57",Not Applicable
Department for Business Energy and Industrial Strategy,Intellectual Property Office,03/12/2021,Accommodation,People Places & Serv Directorate,Total Security Protection Ltd,40475,550.00,Not Applicable
Department for Business Energy and Industrial Strategy,Intellectual Property Office,23/12/2021,Information Technology,IT Directorate,Trustmarque Solutions Ltd,2331934,"3,210.00",Not Applicable
Department for Business Energy and Industrial Strategy,Intellectual Property Office,07/12/2021,Staff Costs,People Places & Serv Directorate,University of  South Wales,INV0001494,"33,306.00",Not Applicable
Department for Business Energy and Industrial Strategy,Intellectual Property Office,07/12/2021,Staff Costs,People Places & Serv Directorate,University of  South Wales,INV0001495,"3,636.00",Not Applicable
Department for Business Energy and Industrial Strategy,Intellectual Property Office,07/12/2021,Staff Costs,People Places & Serv Directorate,University of  South Wales,INV0001496,"16,653.00",Not Applicable
Department for Business Energy and Industrial Strategy,Intellectual Property Office,02/12/2021,Staff Costs,People Places & Serv Directorate,Worth Consulting Ltd,1961,"1,572.00",Not Applicable
Department for Business Energy and Industrial Strategy,Intellectual Property Office,14/12/2021,Office Machinery,People Places & Serv Directorate,Xerox Finance,97537888,"2,557.08",Not Applicable
Department for Business Energy and Industrial Strategy,Intellectual Property Office,01/12/2021,Marketing & Publicity,Innovation Directorate,Aardman Animations Ltd,41595,864.34,Not Applicable
Department for Business Energy and Industrial Strategy,Intellectual Property Office,03/12/2021,Office Supplies,People Places & Serv Directorate,Antalis UK Ltd,2143742,"2,151.70",Not Applicable
Department for Business Energy and Industrial Strategy,Intellectual Property Office,07/12/2021,Supporting UK Business,Innovation Directorate,Marks & Clerk LLP,5250491,"2,500.00",Not Applicable
Department for Business Energy and Industrial Strategy,Intellectual Property Office,31/12/2021,Supporting UK Business,Innovation Directorate,Marks & Clerk LLP,5252157,"2,500.00",Not Applicable
Department for Business Energy and Industrial Strategy,Intellectual Property Office,09/12/2021,Supporting UK Business,Innovation Directorate,Mewburn  Ellis LLP,213486,"2,500.00",Not Applicable
Department for Business Energy and Industrial Strategy,Intellectual Property Office,23/12/2021,Telecoms,IT Directorate,Vodafone Corporate Ltd,100005261,"2,115.22",Not Applicable
Department for Business Energy and Industrial Strategy,Intellectual Property Office,09/12/2021,Supporting UK Business,International Policy Directorate,Foreign & Commonwealth and Development O,1140642,"4,647.07",Not Applicable
Department for Business Energy and Industrial Strategy,Intellectual Property Office,21/12/2021,Supporting UK Business,International Policy Directorate,Foreign & Commonwealth and Development O,1140813,"39,086.49",Not Applicable
Department for Business Energy and Industrial Strategy,Intellectual Property Office,01/12/2021,Information Technology,IT Directorate,Advanced 365 Limited,ARBK/00008791,"30,180.00",Not Applicable
Department for Business Energy and Industrial Strategy,Intellectual Property Office,13/12/2021,Postage & Delivery Costs,People Places & Serv Directorate,RICO LOGISTICS LTD,SINRLLFS00343781,"2,733.23",Not Applicable
Department for Business Energy and Industrial Strategy,Intellectual Property Office,31/12/2021,Postage & Delivery Costs,People Places & Serv Directorate,RICO LOGISTICS LTD,SINRLLFS00345575,"1,435.36",Not Applicable
Department for Business Energy and Industrial Strategy,Intellectual Property Office,13/12/2021,Telecoms,IT Directorate,VIRGIN MEDIA,917218-DEC21,765.35,Not Applicable
Department for Business Energy and Industrial Strategy,Intellectual Property Office,13/12/2021,Information Technology,IT Directorate,boxxe Ltd,INV0120282,"557,878.30",Not Applicable
Department for Business Energy and Industrial Strategy,Intellectual Property Office,07/12/2021,Supporting UK Business,Innovation Directorate,LAWRIE INTELLECTUAL PROPERTY,121826,"2,500.00",Not Applicable
Department for Business Energy and Industrial Strategy,Intellectual Property Office,14/12/2021,Supporting UK Business,Innovation Directorate,LAWRIE INTELLECTUAL PROPERTY,122090,"2,500.00",Not Applicable
Department for Business Energy and Industrial Strategy,Intellectual Property Office,22/12/2021,Supporting UK Business,Innovation Directorate,INNGOT LTD,S21-12/1,"2,500.00",Not Applicable
Department for Business Energy and Industrial Strategy,Intellectual Property Office,22/12/2021,Supporting UK Business,Innovation Directorate,INNGOT LTD,S21-12/10,"2,500.00",Not Applicable
Department for Business Energy and Industrial Strategy,Intellectual Property Office,31/12/2021,Supporting UK Business,Innovation Directorate,INNGOT LTD,S21-12/12,"2,500.00",Not Applicable
Department for Business Energy and Industrial Strategy,Intellectual Property Office,31/12/2021,Supporting UK Business,Innovation Directorate,INNGOT LTD,S21-12/4,"2,500.00",Not Applicable
Department for Business Energy and Industrial Strategy,Intellectual Property Office,03/12/2021,Supporting UK Business,Innovation Directorate,STEPHENS SCOWN LLP,163106,"2,500.00",Not Applicable
Department for Business Energy and Industrial Strategy,Intellectual Property Office,07/12/2021,Supporting UK Business,Innovation Directorate,STEPHENS SCOWN LLP,163291,"2,500.00",Not Applicable
Department for Business Energy and Industrial Strategy,Intellectual Property Office,09/12/2021,Supporting UK Business,Innovation Directorate,STEPHENS SCOWN LLP,163514,"2,500.00",Not Applicable
Department for Business Energy and Industrial Strategy,Intellectual Property Office,31/12/2021,Supporting UK Business,Innovation Directorate,STEPHENS SCOWN LLP,164073,"2,500.00",Not Applicable
Department for Business Energy and Industrial Strategy,Intellectual Property Office,31/12/2021,Supporting UK Business,Innovation Directorate,STEPHENS SCOWN LLP,164157,"2,500.00",Not Applicable
Department for Business Energy and Industrial Strategy,Intellectual Property Office,31/12/2021,Supporting UK Business,Innovation Directorate,STEPHENS SCOWN LLP,164211,"2,500.00",Not Applicable
Department for Business Energy and Industrial Strategy,Intellectual Property Office,31/12/2021,Supporting UK Business,Innovation Directorate,STEPHENS SCOWN LLP,164511,"2,500.00",Not Applicable
Department for Business Energy and Industrial Strategy,Intellectual Property Office,31/12/2021,Supporting UK Business,Innovation Directorate,CAMERON INTELLECTUAL PROPERTY LTD,7039/21,"2,500.00",Not Applicable
Department for Business Energy and Industrial Strategy,Intellectual Property Office,08/12/2021,Miscellaneous Expenses General,People Places & Serv Directorate,Wales Quality Centre,12147,"3,540.00",Not Applicable
Department for Business Energy and Industrial Strategy,Intellectual Property Office,31/12/2021,Pay Costs,Finance Directorate,Accountancy Recruitment Wales Ltd,999684,991.01,Not Applicable
Department for Business Energy and Industrial Strategy,Intellectual Property Office,01/12/2021,Pay Costs,Finance Directorate,Accountancy Recruitment Wales Ltd,999727,"1,260.00",Not Applicable
Department for Business Energy and Industrial Strategy,Intellectual Property Office,02/12/2021,Pay Costs,Finance Directorate,Accountancy Recruitment Wales Ltd,999728,"2,311.66",Not Applicable
Department for Business Energy and Industrial Strategy,Intellectual Property Office,01/12/2021,Pay Costs,Finance Directorate,Accountancy Recruitment Wales Ltd,999729,990.25,Not Applicable
Department for Business Energy and Industrial Strategy,Intellectual Property Office,02/12/2021,Pay Costs,Finance Directorate,Accountancy Recruitment Wales Ltd,999730,"2,311.66",Not Applicable
Department for Business Energy and Industrial Strategy,Intellectual Property Office,02/12/2021,Pay Costs,Finance Directorate,Accountancy Recruitment Wales Ltd,999734,851.93,Not Applicable
Department for Business Energy and Industrial Strategy,Intellectual Property Office,08/12/2021,Pay Costs,Finance Directorate,Accountancy Recruitment Wales Ltd,999735,"1,287.60",Not Applicable
Department for Business Energy and Industrial Strategy,Intellectual Property Office,08/12/2021,Pay Costs,Finance Directorate,Accountancy Recruitment Wales Ltd,999736,"2,311.66",Not Applicable
Department for Business Energy and Industrial Strategy,Intellectual Property Office,08/12/2021,Pay Costs,Finance Directorate,Accountancy Recruitment Wales Ltd,999740,613.80,Not Applicable
Department for Business Energy and Industrial Strategy,Intellectual Property Office,15/12/2021,Pay Costs,Finance Directorate,Accountancy Recruitment Wales Ltd,999742,"1,260.00",Not Applicable
Department for Business Energy and Industrial Strategy,Intellectual Property Office,15/12/2021,Pay Costs,Finance Directorate,Accountancy Recruitment Wales Ltd,999743,"1,387.00",Not Applicable
Department for Business Energy and Industrial Strategy,Intellectual Property Office,22/12/2021,Pay Costs,Finance Directorate,Accountancy Recruitment Wales Ltd,999746,"2,311.66",Not Applicable
Department for Business Energy and Industrial Strategy,Intellectual Property Office,22/12/2021,Pay Costs,Finance Directorate,Accountancy Recruitment Wales Ltd,999747,"1,260.00",Not Applicable
Department for Business Energy and Industrial Strategy,Intellectual Property Office,31/12/2021,Pay Costs,Finance Directorate,Accountancy Recruitment Wales Ltd,999752,756.00,Not Applicable
Department for Business Energy and Industrial Strategy,Intellectual Property Office,06/12/2021,Postage & Delivery Costs,People Places & Serv Directorate,CitySprint (UK) Ltd,3806076,"5,921.64",Not Applicable
Department for Business Energy and Industrial Strategy,Intellectual Property Office,07/12/2021,Accommodation,People Places & Serv Directorate,EDF ENERGY,11018222,"-23,336.06",Not Applicable
Department for Business Energy and Industrial Strategy,Intellectual Property Office,07/12/2021,Accommodation,People Places & Serv Directorate,EDF ENERGY,11018262,"23,370.34",Not Applicable
Department for Business Energy and Industrial Strategy,Intellectual Property Office,14/12/2021,Accommodation,People Places & Serv Directorate,EDF ENERGY,11075026,"24,746.59",Not Applicable
Department for Business Energy and Industrial Strategy,Intellectual Property Office,15/12/2021,Accommodation,People Places & Serv Directorate,EDF ENERGY,11083765,"1,229.78",Not Applicable
Department for Business Energy and Industrial Strategy,Intellectual Property Office,16/12/2021,Pay Costs,Copyright and Enforcement Directorate,Police & Crime Commissioner Sussex,1800049282,"4,978.90",Not Applicable
Department for Business Energy and Industrial Strategy,Intellectual Property Office,17/12/2021,Staff Costs,People Places & Serv Directorate,Sodexo Motivation Solutions UK Ltd,3780105,"3,401.23",Not Applicable
Department for Business Energy and Industrial Strategy,Intellectual Property Office,17/12/2021,Staff Costs,People Places & Serv Directorate,Sodexo Motivation Solutions UK Ltd,3780160,"3,626.00",Not Applicable
Department for Business Energy and Industrial Strategy,Intellectual Property Office,21/12/2021,Telecoms,IT Directorate,EE Ltd,1287353602,990.14,Not Applicable
Department for Business Energy and Industrial Strategy,Intellectual Property Office,20/12/2021,Supporting UK Business,Innovation Directorate,Government Legal Department,501482,"1,118.40",Not Applicable
Department for Business Energy and Industrial Strategy,Intellectual Property Office,01/12/2021,Telecoms,IT Directorate,Personal expenses,UK10/102021/4559,"9,020.38",Not Applicable
Department for Business Energy and Industrial Strategy,Intellectual Property Office,07/12/2021,Miscellaneous Expenses General,Trade Mark Directorate,FCDO Services,6080552,"1,537.50",Not Applicable
Department for Business Energy and Industrial Strategy,Intellectual Property Office,14/12/2021,Supporting UK Business,Innovation Directorate,Murgitroyd & Company Ltd,52910M-21,"2,500.00",Not Applicable
Department for Business Energy and Industrial Strategy,Intellectual Property Office,14/12/2021,Supporting UK Business,Innovation Directorate,Bailey Walsh & Co,186373,"2,500.00",Not Applicable
Department for Business Energy and Industrial Strategy,Intellectual Property Office,03/12/2021,Office Supplies,People Places & Serv Directorate,XMA LIMITED,OPP509873,"1,744.34",Not Applicable
Department for Business Energy and Industrial Strategy,Intellectual Property Office,31/12/2021,Supporting UK Business,Copyright and Enforcement Directorate,whiteBULLET Solutions Ltd,INV-20/3455,"29,700.00",Not Applicable
Department for Business Energy and Industrial Strategy,Intellectual Property Office,14/12/2021,Information Technology,Innovation Directorate,Bureau Van Dijk Electronic Publish,ZGB3002819,"180,000.00",Not Applicable
Department for Business Energy and Industrial Strategy,Intellectual Property Office,20/12/2021,Miscellaneous Expenses General,Patent Directorate,European Patent Office,40305810,"559,461.35",Not Applicable
Department for Business Energy and Industrial Strategy,Intellectual Property Office,13/12/2021,Information Technology,Patent Directorate,European Patent Office,40305832,"121,389.42",Not Applicable
Department for Business Energy and Industrial Strategy,Intellectual Property Office,07/12/2021,Information Technology,Trade Mark Directorate,COEXYA SAS,SIPEUAF211100164,"38,700.00",Not Applicable
Department for Business Energy and Industrial Strategy,Intellectual Property Office,07/12/2021,Information Technology,Trade Mark Directorate,COEXYA SAS,SIPEUAF211100165,"3,240.30",Not Applicable
Department for Business Energy and Industrial Strategy,Intellectual Property Office,20/12/2021,Supporting UK Business,Innovation Directorate,IPConsult,17064,"2,500.00",Not Applicable
Department for Business Energy and Industrial Strategy,Intellectual Property Office,13/12/2021,Miscellaneous Expenses General,People Places & Serv Directorate,Insight Health Screening,16711,"3,715.00",Not Applicable
Department for Business Energy and Industrial Strategy,Intellectual Property Office,09/12/2021,Supporting UK Business,Innovation Directorate,Scintilla,INV-02961,"4,800.00",Not Applicable
Department for Business Energy and Industrial Strategy,Intellectual Property Office,09/12/2021,Supporting UK Business,Innovation Directorate,Scintilla,INV-02982,"2,500.00",Not Applicable
Department for Business Energy and Industrial Strategy,Intellectual Property Office,09/12/2021,Supporting UK Business,Innovation Directorate,Scintilla,INV-03009,"2,500.00",Not Applicable
Department for Business Energy and Industrial Strategy,Intellectual Property Office,01/12/2021,Information Technology,People Places & Serv Directorate,Restore Technology Limited,28182,"1,080.00",Not Applicable
Department for Business Energy and Industrial Strategy,Intellectual Property Office,01/12/2021,Information Technology,IT Directorate,Restore Technology Limited,28182,240.00,Not Applicable
Department for Business Energy and Industrial Strategy,Intellectual Property Office,01/12/2021,Information Technology,People Places & Serv Directorate,Restore Technology Limited,28182,"1,692.00",Not Applicable
Department for Business Energy and Industrial Strategy,Intellectual Property Office,16/12/2021,Office Supplies,Patent Directorate,Elsevier BV,M521015,952.28,Not Applicable
Department for Business Energy and Industrial Strategy,Intellectual Property Office,16/12/2021,Information Technology,Patent Directorate,Elsevier BV,SD519821,"20,767.73",Not Applicable
Department for Business Energy and Industrial Strategy,Intellectual Property Office,07/12/2021,Information Technology,IT Directorate,Ingram Publishing,183186,"1,500.00",Not Applicable
Department for Business Energy and Industrial Strategy,Intellectual Property Office,21/12/2021,Office Machinery,People Places & Serv Directorate,Siemens Financial Services Limited,244/22/0048251,"2,760.00",Not Applicable
Department for Business Energy and Industrial Strategy,Intellectual Property Office,01/12/2021,Information Technology,Patent Directorate,Springer Nature Customer Service Centre,2937552626,"19,307.71",Not Applicable
Department for Business Energy and Industrial Strategy,Intellectual Property Office,07/12/2021,Miscellaneous Expenses General,People Places & Serv Directorate,Health Assured Ltd,SF-097325,"2,541.00",Not Applicable
Department for Business Energy and Industrial Strategy,Intellectual Property Office,01/12/2021,Other FA at Cost,IT Directorate,IBM UNITED KINGDOM LIMITED,5811211532,"2,639.20",Not Applicable
Department for Business Energy and Industrial Strategy,Intellectual Property Office,31/12/2021,Supporting UK Business,Innovation Directorate,Wynne-Jones Laine and James LLP,2011507,"2,500.00",Not Applicable
Department for Business Energy and Industrial Strategy,Intellectual Property Office,09/12/2021,Supporting UK Business,Innovation Directorate,Appleyard Lees,154819,"4,999.80",Not Applicable
Department for Business Energy and Industrial Strategy,Intellectual Property Office,22/12/2021,Supporting UK Business,Innovation Directorate,Appleyard Lees,154991,"2,500.00",Not Applicable
Department for Business Energy and Industrial Strategy,Intellectual Property Office,31/12/2021,Staff Costs,People Places & Serv Directorate,Media Training Ltd,INV-66810,"1,078.80",Not Applicable
Department for Business Energy and Industrial Strategy,Intellectual Property Office,14/12/2021,Supporting UK Business,Innovation Directorate,Ben Williams,2012898,"2,500.00",Not Applicable
Department for Business Energy and Industrial Strategy,Intellectual Property Office,20/12/2021,Supporting UK Business,Copyright and Enforcement Directorate,Brick Court Chambers,INVRHO329,949.50,Not Applicable
Department for Business Energy and Industrial Strategy,Intellectual Property Office,08/12/2021,Staff Costs,People Places & Serv Directorate,Ernst & Young LLP,GB01G000253000,928.80,Not Applicable
Department for Business Energy and Industrial Strategy,Intellectual Property Office,13/12/2021,International Payments,International Policy Directorate,WIPO,CNTRW00003709,"936,760.11",Not Applicable
Department for Business Energy and Industrial Strategy,Intellectual Property Office,14/12/2021,Supporting UK Business,Innovation Directorate,Hutchinson IP Ltd,5135,"2,500.00",Not Applicable
Department for Business Energy and Industrial Strategy,Intellectual Property Office,16/12/2021,Supporting UK Business,Innovation Directorate,Hutchinson IP Ltd,5141,"2,500.00",Not Applicable
Department for Business Energy and Industrial Strategy,Intellectual Property Office,14/12/2021,Supporting UK Business,Innovation Directorate,Astrum ElementOne Limited,S8077,"2,500.00",Not Applicable
Department for Business Energy and Industrial Strategy,Intellectual Property Office,14/12/2021,Supporting UK Business,Innovation Directorate,Venture Proof Ltd,2278,"2,500.00",Not Applicable
Department for Business Energy and Industrial Strategy,Intellectual Property Office,02/12/2021,Information Technology,IT Directorate,Equal Experts UK Limited,INV-9623,"15,000.00",Not Applicable
Department for Business Energy and Industrial Strategy,Intellectual Property Office,10/12/2021,Legal & Hearings,Trade Mark Directorate,Hogarth Chambers,52359,"2,610.00",Not Applicable
Department for Business Energy and Industrial Strategy,Intellectual Property Office,10/12/2021,Legal & Hearings,Trade Mark Directorate,Hogarth Chambers,52412,960.00,Not Applicable
Department for Business Energy and Industrial Strategy,Intellectual Property Office,09/12/2021,Supporting UK Business,Innovation Directorate,IP21 LTD,27768,"2,499.60",Not Applicable
Department for Business Energy and Industrial Strategy,Intellectual Property Office,31/12/2021,Accommodation,People Places & Serv Directorate,Shred It Limited,9505033718,"1,008.00",Not Applicable
Department for Business Energy and Industrial Strategy,Intellectual Property Office,07/12/2021,Supporting UK Business,Innovation Directorate,Mathys & Squire IP,437767,"2,500.00",Not Applicable
Department for Business Energy and Industrial Strategy,Intellectual Property Office,07/12/2021,Supporting UK Business,Innovation Directorate,Keltie LLP,163073,"2,500.00",Not Applicable
Department for Business Energy and Industrial Strategy,Intellectual Property Office,31/12/2021,Supporting UK Business,Innovation Directorate,Keltie LLP,163520,"2,500.01",Not Applicable
Department for Business Energy and Industrial Strategy,Intellectual Property Office,02/12/2021,Office Supplies,People Places & Serv Directorate,Blake Envelopes,SI0000727694,645.60,Not Applicable
Department for Business Energy and Industrial Strategy,Intellectual Property Office,08/12/2021,Office Supplies,People Places & Serv Directorate,Blake Envelopes,SI0000728125,"1,322.40",Not Applicable
Department for Business Energy and Industrial Strategy,Intellectual Property Office,13/12/2021,Office Supplies,People Places & Serv Directorate,Blake Envelopes,SI0000728574,"1,584.00",Not Applicable
Department for Business Energy and Industrial Strategy,Intellectual Property Office,20/12/2021,Office Supplies,People Places & Serv Directorate,Blake Envelopes,SI0000728831,"1,482.00",Not Applicable
Department for Business Energy and Industrial Strategy,Intellectual Property Office,09/12/2021,Supporting UK Business,Innovation Directorate,Hargreaves Elsworth,8005,"2,500.00",Not Applicable
Department for Business Energy and Industrial Strategy,Intellectual Property Office,31/12/2021,Supporting UK Business,Innovation Directorate,Hargreaves Elsworth,8024,"2,500.00",Not Applicable
Department for Business Energy and Industrial Strategy,Intellectual Property Office,31/12/2021,Information Technology,IT Directorate,8X8 Solutions,3229031,"2,639.06",Not Applicable
Department for Business Energy and Industrial Strategy,Intellectual Property Office,07/12/2021,Information Technology,IT Directorate,8X8 Solutions,3262965,"2,582.88",Not Applicable
Department for Business Energy and Industrial Strategy,Intellectual Property Office,14/12/2021,Supporting UK Business,Innovation Directorate,HFG Limited,663201,"2,500.00",Not Applicable
Department for Business Energy and Industrial Strategy,Intellectual Property Office,09/12/2021,Supporting UK Business,Innovation Directorate,HFG Limited,664953,"2,500.00",Not Applicable
Department for Business Energy and Industrial Strategy,Intellectual Property Office,31/12/2021,Supporting UK Business,Innovation Directorate,HFG Limited,668228,"2,500.00",Not Applicable
Department for Business Energy and Industrial Strategy,Intellectual Property Office,09/12/2021,Supporting UK Business,Innovation Directorate,The IP Asset Partnership Ltd,2111035,"2,500.00",Not Applicable
Department for Business Energy and Industrial Strategy,Intellectual Property Office,22/12/2021,Staff Costs,Innovation Directorate,Chartered Institute of Public Relations.,1077858-2022,"4,150.00",Not Applicable
Department for Business Energy and Industrial Strategy,Intellectual Property Office,31/12/2021,Supporting UK Business,Innovation Directorate,Definition IP Ltd,INV-002286,"2,500.00",Not Applicable
Department for Business Energy and Industrial Strategy,Intellectual Property Office,14/12/2021,Supporting UK Business,Innovation Directorate,Definition IP Ltd,INV-002302,"2,500.00",Not Applicable
Department for Business Energy and Industrial Strategy,Intellectual Property Office,31/12/2021,Supporting UK Business,Innovation Directorate,Definition IP Ltd,INV-002312,"2,500.00",Not Applicable
Department for Business Energy and Industrial Strategy,Intellectual Property Office,31/12/2021,Supporting UK Business,Innovation Directorate,Definition IP Ltd,INV-002321,"5,000.00",Not Applicable
Department for Business Energy and Industrial Strategy,Intellectual Property Office,31/12/2021,Supporting UK Business,Innovation Directorate,Definition IP Ltd,INV-002332,"2,500.00",Not Applicable
Department for Business Energy and Industrial Strategy,Intellectual Property Office,23/12/2021,Supporting UK Business,Innovation Directorate,Lewis Silkin LLP,567150,"2,500.00",Not Applicable
Department for Business Energy and Industrial Strategy,Intellectual Property Office,09/12/2021,Telecoms,IT Directorate,Gamma Telecom Ltd,GA1633727,"2,054.05",Not Applicable
Department for Business Energy and Industrial Strategy,Intellectual Property Office,08/12/2021,Staff Costs,People Places & Serv Directorate,Bethan Roberts,758-2021,"1,957.20",Not Applicable
Department for Business Energy and Industrial Strategy,Intellectual Property Office,21/12/2021,Staff Costs,People Places & Serv Directorate,Bethan Roberts,759-2021,650.00,Not Applicable
Department for Business Energy and Industrial Strategy,Intellectual Property Office,15/12/2021,Information Technology,IT Directorate,Acuma Solutions Limited,SIN022744,"14,383.38",Not Applicable
Department for Business Energy and Industrial Strategy,Intellectual Property Office,20/12/2021,Supporting UK Business,Innovation Directorate,Barker Brettell LLP,444400,"2,500.00",Not Applicable
Department for Business Energy and Industrial Strategy,Intellectual Property Office,09/12/2021,Legal & Hearings,Trade Mark Directorate,The International Dispute Resoluti,29118,"7,524.00",Not Applicable
Department for Business Energy and Industrial Strategy,Intellectual Property Office,13/12/2021,Other FA at Cost,Projects,Deloitte LLP,8002262831,"7,433.77",Not Applicable
Department for Business Energy and Industrial Strategy,Intellectual Property Office,13/12/2021,Other FA at Cost,Projects,Deloitte LLP,8002262833,"219,741.60",Not Applicable
Department for Business Energy and Industrial Strategy,Intellectual Property Office,13/12/2021,Other FA at Cost,Projects,Deloitte LLP,8002262834,"229,854.00",Not Applicable
Department for Business Energy and Industrial Strategy,Intellectual Property Office,20/12/2021,Supporting UK Business,Innovation Directorate,BASCK Limited,21857,"2,500.00",Not Applicable
Department for Business Energy and Industrial Strategy,Intellectual Property Office,20/12/2021,Supporting UK Business,Innovation Directorate,BASCK Limited,21860,"2,500.00",Not Applicable
Department for Business Energy and Industrial Strategy,Intellectual Property Office,31/12/2021,Supporting UK Business,Innovation Directorate,Reddie & Grose LLP,304127,"2,500.00",Not Applicable
Department for Business Energy and Industrial Strategy,Intellectual Property Office,31/12/2021,Supporting UK Business,Innovation Directorate,Reddie & Grose LLP,304128,"2,500.00",Not Applicable
Department for Business Energy and Industrial Strategy,Intellectual Property Office,13/12/2021,Marketing & Publicity,People Places & Serv Directorate,DC Publishing Limited,DCP13834,"1,194.00",Not Applicable
Department for Business Energy and Industrial Strategy,Intellectual Property Office,02/12/2021,Supporting UK Business,Copyright and Enforcement Directorate,Gavin Terry Consulting,1121/228,"2,393.06",Not Applicable
Department for Business Energy and Industrial Strategy,Intellectual Property Office,02/12/2021,Pay Costs,IT Directorate,Alexander Mann Solutions Limited,2435206,"3,465.30",Not Applicable
Department for Business Energy and Industrial Strategy,Intellectual Property Office,02/12/2021,Pay Costs,Patent Directorate,Alexander Mann Solutions Limited,2435209,516.24,Not Applicable
Department for Business Energy and Industrial Strategy,Intellectual Property Office,02/12/2021,Pay Costs,People Places & Serv Directorate,Alexander Mann Solutions Limited,2435229,674.44,Not Applicable
Department for Business Energy and Industrial Strategy,Intellectual Property Office,02/12/2021,Pay Costs,Trade Mark Directorate,Alexander Mann Solutions Limited,2443906,764.57,Not Applicable
Department for Business Energy and Industrial Strategy,Intellectual Property Office,03/12/2021,Pay Costs,IT Directorate,Alexander Mann Solutions Limited,2457298,"2,515.64",Not Applicable
Department for Business Energy and Industrial Strategy,Intellectual Property Office,03/12/2021,Pay Costs,IT Directorate,Alexander Mann Solutions Limited,2457299,"3,510.35",Not Applicable
Department for Business Energy and Industrial Strategy,Intellectual Property Office,03/12/2021,Pay Costs,IT Directorate,Alexander Mann Solutions Limited,2457301,"3,506.62",Not Applicable
Department for Business Energy and Industrial Strategy,Intellectual Property Office,03/12/2021,Pay Costs,People Places & Serv Directorate,Alexander Mann Solutions Limited,2457302,865.36,Not Applicable
Department for Business Energy and Industrial Strategy,Intellectual Property Office,03/12/2021,Pay Costs,IT Directorate,Alexander Mann Solutions Limited,2457303,"11,297.95",Not Applicable
Department for Business Energy and Industrial Strategy,Intellectual Property Office,03/12/2021,Pay Costs,Patent Directorate,Alexander Mann Solutions Limited,2457304,"1,290.60",Not Applicable
Department for Business Energy and Industrial Strategy,Intellectual Property Office,03/12/2021,Pay Costs,Patent Directorate,Alexander Mann Solutions Limited,2457305,636.70,Not Applicable
Department for Business Energy and Industrial Strategy,Intellectual Property Office,03/12/2021,Pay Costs,Patent Directorate,Alexander Mann Solutions Limited,2457306,636.70,Not Applicable
Department for Business Energy and Industrial Strategy,Intellectual Property Office,03/12/2021,Pay Costs,Patent Directorate,Alexander Mann Solutions Limited,2457307,636.70,Not Applicable
Department for Business Energy and Industrial Strategy,Intellectual Property Office,03/12/2021,Pay Costs,IT Directorate,Alexander Mann Solutions Limited,2457308,"3,611.94",Not Applicable
Department for Business Energy and Industrial Strategy,Intellectual Property Office,03/12/2021,Pay Costs,IT Directorate,Alexander Mann Solutions Limited,2457309,"1,746.01",Not Applicable
Department for Business Energy and Industrial Strategy,Intellectual Property Office,03/12/2021,Pay Costs,Projects,Alexander Mann Solutions Limited,2457310,"14,365.37",Not Applicable
Department for Business Energy and Industrial Strategy,Intellectual Property Office,03/12/2021,Pay Costs,IT Directorate,Alexander Mann Solutions Limited,2457312,973.12,Not Applicable
Department for Business Energy and Industrial Strategy,Intellectual Property Office,03/12/2021,Pay Costs,Trade Mark Directorate,Alexander Mann Solutions Limited,2457313,764.57,Not Applicable
Department for Business Energy and Industrial Strategy,Intellectual Property Office,03/12/2021,Pay Costs,Patent Directorate,Alexander Mann Solutions Limited,2457314,645.30,Not Applicable
Department for Business Energy and Industrial Strategy,Intellectual Property Office,03/12/2021,Pay Costs,Patent Directorate,Alexander Mann Solutions Limited,2457315,645.30,Not Applicable
Department for Business Energy and Industrial Strategy,Intellectual Property Office,03/12/2021,Pay Costs,IT Directorate,Alexander Mann Solutions Limited,2457316,"6,479.24",Not Applicable
Department for Business Energy and Industrial Strategy,Intellectual Property Office,03/12/2021,Pay Costs,Patent Directorate,Alexander Mann Solutions Limited,2457317,645.30,Not Applicable
Department for Business Energy and Industrial Strategy,Intellectual Property Office,03/12/2021,Pay Costs,IT Directorate,Alexander Mann Solutions Limited,2457318,"4,410.42",Not Applicable
Department for Business Energy and Industrial Strategy,Intellectual Property Office,03/12/2021,Pay Costs,Trade Mark Directorate,Alexander Mann Solutions Limited,2457319,764.57,Not Applicable
Department for Business Energy and Industrial Strategy,Intellectual Property Office,03/12/2021,Pay Costs,Trade Mark Directorate,Alexander Mann Solutions Limited,2457320,764.57,Not Applicable
Department for Business Energy and Industrial Strategy,Intellectual Property Office,03/12/2021,Pay Costs,Trade Mark Directorate,Alexander Mann Solutions Limited,2457321,764.57,Not Applicable
Department for Business Energy and Industrial Strategy,Intellectual Property Office,03/12/2021,Pay Costs,Trade Mark Directorate,Alexander Mann Solutions Limited,2457322,764.57,Not Applicable
Department for Business Energy and Industrial Strategy,Intellectual Property Office,03/12/2021,Pay Costs,Trade Mark Directorate,Alexander Mann Solutions Limited,2457323,733.57,Not Applicable
Department for Business Energy and Industrial Strategy,Intellectual Property Office,03/12/2021,Pay Costs,Trade Mark Directorate,Alexander Mann Solutions Limited,2457324,"1,529.14",Not Applicable
Department for Business Energy and Industrial Strategy,Intellectual Property Office,03/12/2021,Pay Costs,Trade Mark Directorate,Alexander Mann Solutions Limited,2457325,619.92,Not Applicable
Department for Business Energy and Industrial Strategy,Intellectual Property Office,03/12/2021,Pay Costs,Trade Mark Directorate,Alexander Mann Solutions Limited,2457327,619.92,Not Applicable
Department for Business Energy and Industrial Strategy,Intellectual Property Office,03/12/2021,Pay Costs,Trade Mark Directorate,Alexander Mann Solutions Limited,2457328,568.26,Not Applicable
Department for Business Energy and Industrial Strategy,Intellectual Property Office,03/12/2021,Pay Costs,Trade Mark Directorate,Alexander Mann Solutions Limited,2457329,764.57,Not Applicable
Department for Business Energy and Industrial Strategy,Intellectual Property Office,03/12/2021,Pay Costs,Patent Directorate,Alexander Mann Solutions Limited,2457330,698.41,Not Applicable
Department for Business Energy and Industrial Strategy,Intellectual Property Office,03/12/2021,Pay Costs,IT Directorate,Alexander Mann Solutions Limited,2457331,"3,465.30",Not Applicable
Department for Business Energy and Industrial Strategy,Intellectual Property Office,03/12/2021,Pay Costs,Projects,Alexander Mann Solutions Limited,2457332,"3,326.04",Not Applicable
Department for Business Energy and Industrial Strategy,Intellectual Property Office,03/12/2021,Pay Costs,Projects,Alexander Mann Solutions Limited,2457333,"3,780.36",Not Applicable
Department for Business Energy and Industrial Strategy,Intellectual Property Office,03/12/2021,Pay Costs,Patent Directorate,Alexander Mann Solutions Limited,2457334,653.90,Not Applicable
Department for Business Energy and Industrial Strategy,Intellectual Property Office,03/12/2021,Pay Costs,IT Directorate,Alexander Mann Solutions Limited,2457335,"2,440.62",Not Applicable
Department for Business Energy and Industrial Strategy,Intellectual Property Office,03/12/2021,Pay Costs,People Places & Serv Directorate,Alexander Mann Solutions Limited,2457338,"11,341.03",Not Applicable
Department for Business Energy and Industrial Strategy,Intellectual Property Office,03/12/2021,Pay Costs,People Places & Serv Directorate,Alexander Mann Solutions Limited,2457339,"7,560.68",Not Applicable
Department for Business Energy and Industrial Strategy,Intellectual Property Office,03/12/2021,Pay Costs,Patent Directorate,Alexander Mann Solutions Limited,2457340,610.06,Not Applicable
Department for Business Energy and Industrial Strategy,Intellectual Property Office,03/12/2021,Pay Costs,Patent Directorate,Alexander Mann Solutions Limited,2457341,561.56,Not Applicable
Department for Business Energy and Industrial Strategy,Intellectual Property Office,03/12/2021,Pay Costs,Patent Directorate,Alexander Mann Solutions Limited,2457342,698.41,Not Applicable
Department for Business Energy and Industrial Strategy,Intellectual Property Office,03/12/2021,Pay Costs,Patent Directorate,Alexander Mann Solutions Limited,2457343,698.41,Not Applicable
Department for Business Energy and Industrial Strategy,Intellectual Property Office,03/12/2021,Pay Costs,Innovation Directorate,Alexander Mann Solutions Limited,2457344,674.44,Not Applicable
Department for Business Energy and Industrial Strategy,Intellectual Property Office,03/12/2021,Pay Costs,Patent Directorate,Alexander Mann Solutions Limited,2457345,645.30,Not Applicable
Department for Business Energy and Industrial Strategy,Intellectual Property Office,03/12/2021,Pay Costs,Patent Directorate,Alexander Mann Solutions Limited,2457346,610.06,Not Applicable
Department for Business Energy and Industrial Strategy,Intellectual Property Office,03/12/2021,Pay Costs,IT Directorate,Alexander Mann Solutions Limited,2457348,"3,276.29",Not Applicable
Department for Business Energy and Industrial Strategy,Intellectual Property Office,03/12/2021,Pay Costs,Projects,Alexander Mann Solutions Limited,2457349,"4,410.42",Not Applicable
Department for Business Energy and Industrial Strategy,Intellectual Property Office,03/12/2021,Pay Costs,Projects,Alexander Mann Solutions Limited,2457350,"3,695.64",Not Applicable
Department for Business Energy and Industrial Strategy,Intellectual Property Office,03/12/2021,Pay Costs,Finance Directorate,Alexander Mann Solutions Limited,2457351,674.44,Not Applicable
Department for Business Energy and Industrial Strategy,Intellectual Property Office,03/12/2021,Pay Costs,Patent Directorate,Alexander Mann Solutions Limited,2457352,622.36,Not Applicable
Department for Business Energy and Industrial Strategy,Intellectual Property Office,03/12/2021,Pay Costs,Finance Directorate,Alexander Mann Solutions Limited,2457353,"3,079.62",Not Applicable
Department for Business Energy and Industrial Strategy,Intellectual Property Office,03/12/2021,Pay Costs,Patent Directorate,Alexander Mann Solutions Limited,2457354,698.41,Not Applicable
Department for Business Energy and Industrial Strategy,Intellectual Property Office,03/12/2021,Pay Costs,Finance Directorate,Alexander Mann Solutions Limited,2457355,688.20,Not Applicable
Department for Business Energy and Industrial Strategy,Intellectual Property Office,03/12/2021,Pay Costs,Patent Directorate,Alexander Mann Solutions Limited,2457356,645.30,Not Applicable
Department for Business Energy and Industrial Strategy,Intellectual Property Office,03/12/2021,Pay Costs,Projects,Alexander Mann Solutions Limited,2457357,"3,465.30",Not Applicable
Department for Business Energy and Industrial Strategy,Intellectual Property Office,10/12/2021,Pay Costs,IT Directorate,Alexander Mann Solutions Limited,2461793,"4,192.74",Not Applicable
Department for Business Energy and Industrial Strategy,Intellectual Property Office,10/12/2021,Pay Costs,IT Directorate,Alexander Mann Solutions Limited,2461794,"3,457.43",Not Applicable
Department for Business Energy and Industrial Strategy,Intellectual Property Office,10/12/2021,Pay Costs,IT Directorate,Alexander Mann Solutions Limited,2461795,"2,930.40",Not Applicable
Department for Business Energy and Industrial Strategy,Intellectual Property Office,10/12/2021,Pay Costs,IT Directorate,Alexander Mann Solutions Limited,2461797,"3,568.18",Not Applicable
Department for Business Energy and Industrial Strategy,Intellectual Property Office,10/12/2021,Pay Costs,People Places & Serv Directorate,Alexander Mann Solutions Limited,2461798,526.24,Not Applicable
Department for Business Energy and Industrial Strategy,Intellectual Property Office,10/12/2021,Pay Costs,IT Directorate,Alexander Mann Solutions Limited,2461799,"3,079.68",Not Applicable
Department for Business Energy and Industrial Strategy,Intellectual Property Office,10/12/2021,Pay Costs,Patent Directorate,Alexander Mann Solutions Limited,2461800,645.30,Not Applicable
Department for Business Energy and Industrial Strategy,Intellectual Property Office,10/12/2021,Pay Costs,Patent Directorate,Alexander Mann Solutions Limited,2461801,636.70,Not Applicable
Department for Business Energy and Industrial Strategy,Intellectual Property Office,10/12/2021,Pay Costs,Patent Directorate,Alexander Mann Solutions Limited,2461802,619.49,Not Applicable
Department for Business Energy and Industrial Strategy,Intellectual Property Office,10/12/2021,Pay Costs,Patent Directorate,Alexander Mann Solutions Limited,2461803,636.70,Not Applicable
Department for Business Energy and Industrial Strategy,Intellectual Property Office,10/12/2021,Pay Costs,IT Directorate,Alexander Mann Solutions Limited,2461804,"3,611.94",Not Applicable
Department for Business Energy and Industrial Strategy,Intellectual Property Office,10/12/2021,Pay Costs,IT Directorate,Alexander Mann Solutions Limited,2461805,"1,031.90",Not Applicable
Department for Business Energy and Industrial Strategy,Intellectual Property Office,10/12/2021,Pay Costs,Trade Mark Directorate,Alexander Mann Solutions Limited,2461806,764.57,Not Applicable
Department for Business Energy and Industrial Strategy,Intellectual Property Office,10/12/2021,Pay Costs,Patent Directorate,Alexander Mann Solutions Limited,2461807,645.30,Not Applicable
Department for Business Energy and Industrial Strategy,Intellectual Property Office,10/12/2021,Pay Costs,Patent Directorate,Alexander Mann Solutions Limited,2461808,"1,290.60",Not Applicable
Department for Business Energy and Industrial Strategy,Intellectual Property Office,10/12/2021,Pay Costs,Patent Directorate,Alexander Mann Solutions Limited,2461809,"1,290.60",Not Applicable
Department for Business Energy and Industrial Strategy,Intellectual Property Office,10/12/2021,Pay Costs,IT Directorate,Alexander Mann Solutions Limited,2461810,"4,410.42",Not Applicable
Department for Business Energy and Industrial Strategy,Intellectual Property Office,10/12/2021,Pay Costs,Trade Mark Directorate,Alexander Mann Solutions Limited,2461811,619.92,Not Applicable
Department for Business Energy and Industrial Strategy,Intellectual Property Office,10/12/2021,Pay Costs,Trade Mark Directorate,Alexander Mann Solutions Limited,2461812,764.57,Not Applicable
Department for Business Energy and Industrial Strategy,Intellectual Property Office,10/12/2021,Pay Costs,Trade Mark Directorate,Alexander Mann Solutions Limited,2461813,764.57,Not Applicable
Department for Business Energy and Industrial Strategy,Intellectual Property Office,10/12/2021,Pay Costs,Trade Mark Directorate,Alexander Mann Solutions Limited,2461814,619.92,Not Applicable
Department for Business Energy and Industrial Strategy,Intellectual Property Office,13/12/2021,Pay Costs,Trade Mark Directorate,Alexander Mann Solutions Limited,2461816,"1,064.20",Not Applicable
Department for Business Energy and Industrial Strategy,Intellectual Property Office,10/12/2021,Pay Costs,Trade Mark Directorate,Alexander Mann Solutions Limited,2461817,764.57,Not Applicable
Department for Business Energy and Industrial Strategy,Intellectual Property Office,10/12/2021,Pay Costs,Trade Mark Directorate,Alexander Mann Solutions Limited,2461818,764.57,Not Applicable
Department for Business Energy and Industrial Strategy,Intellectual Property Office,10/12/2021,Pay Costs,Trade Mark Directorate,Alexander Mann Solutions Limited,2461819,"1,529.14",Not Applicable
Department for Business Energy and Industrial Strategy,Intellectual Property Office,13/12/2021,Pay Costs,Trade Mark Directorate,Alexander Mann Solutions Limited,2461821,"1,529.14",Not Applicable
Department for Business Energy and Industrial Strategy,Intellectual Property Office,10/12/2021,Pay Costs,Trade Mark Directorate,Alexander Mann Solutions Limited,2461822,"1,529.14",Not Applicable
Department for Business Energy and Industrial Strategy,Intellectual Property Office,10/12/2021,Pay Costs,Trade Mark Directorate,Alexander Mann Solutions Limited,2461823,"1,529.14",Not Applicable
Department for Business Energy and Industrial Strategy,Intellectual Property Office,10/12/2021,Pay Costs,Trade Mark Directorate,Alexander Mann Solutions Limited,2461825,764.57,Not Applicable
Department for Business Energy and Industrial Strategy,Intellectual Property Office,10/12/2021,Pay Costs,Trade Mark Directorate,Alexander Mann Solutions Limited,2461827,764.57,Not Applicable
Department for Business Energy and Industrial Strategy,Intellectual Property Office,10/12/2021,Pay Costs,Patent Directorate,Alexander Mann Solutions Limited,2461828,698.41,Not Applicable
Department for Business Energy and Industrial Strategy,Intellectual Property Office,10/12/2021,Pay Costs,IT Directorate,Alexander Mann Solutions Limited,2461829,"4,090.44",Not Applicable
Department for Business Energy and Industrial Strategy,Intellectual Property Office,10/12/2021,Pay Costs,IT Directorate,Alexander Mann Solutions Limited,2461830,"3,136.03",Not Applicable
Department for Business Energy and Industrial Strategy,Intellectual Property Office,10/12/2021,Pay Costs,IT Directorate,Alexander Mann Solutions Limited,2461831,"3,465.30",Not Applicable
Department for Business Energy and Industrial Strategy,Intellectual Property Office,13/12/2021,Pay Costs,Projects,Alexander Mann Solutions Limited,2461832,"8,315.11",Not Applicable
Department for Business Energy and Industrial Strategy,Intellectual Property Office,10/12/2021,Pay Costs,IT Directorate,Alexander Mann Solutions Limited,2461833,"4,090.44",Not Applicable
Department for Business Energy and Industrial Strategy,Intellectual Property Office,10/12/2021,Pay Costs,Projects,Alexander Mann Solutions Limited,2461834,"3,780.36",Not Applicable
Department for Business Energy and Industrial Strategy,Intellectual Property Office,10/12/2021,Pay Costs,Patent Directorate,Alexander Mann Solutions Limited,2461835,645.30,Not Applicable
Department for Business Energy and Industrial Strategy,Intellectual Property Office,10/12/2021,Pay Costs,IT Directorate,Alexander Mann Solutions Limited,2461836,"2,440.62",Not Applicable
Department for Business Energy and Industrial Strategy,Intellectual Property Office,13/12/2021,Pay Costs,People Places & Serv Directorate,Alexander Mann Solutions Limited,2461839,"12,601.14",Not Applicable
Department for Business Energy and Industrial Strategy,Intellectual Property Office,10/12/2021,Pay Costs,Patent Directorate,Alexander Mann Solutions Limited,2461840,991.08,Not Applicable
Department for Business Energy and Industrial Strategy,Intellectual Property Office,10/12/2021,Pay Costs,IT Directorate,Alexander Mann Solutions Limited,2461841,"4,511.16",Not Applicable
Department for Business Energy and Industrial Strategy,Intellectual Property Office,13/12/2021,Pay Costs,Patent Directorate,Alexander Mann Solutions Limited,2461842,637.07,Not Applicable
Department for Business Energy and Industrial Strategy,Intellectual Property Office,10/12/2021,Pay Costs,Patent Directorate,Alexander Mann Solutions Limited,2461844,698.41,Not Applicable
Department for Business Energy and Industrial Strategy,Intellectual Property Office,10/12/2021,Pay Costs,Patent Directorate,Alexander Mann Solutions Limited,2461845,698.41,Not Applicable
Department for Business Energy and Industrial Strategy,Intellectual Property Office,10/12/2021,Pay Costs,Innovation Directorate,Alexander Mann Solutions Limited,2461846,674.44,Not Applicable
Department for Business Energy and Industrial Strategy,Intellectual Property Office,10/12/2021,Pay Costs,Patent Directorate,Alexander Mann Solutions Limited,2461847,"1,290.60",Not Applicable
Department for Business Energy and Industrial Strategy,Intellectual Property Office,10/12/2021,Pay Costs,Patent Directorate,Alexander Mann Solutions Limited,2461848,560.59,Not Applicable
Department for Business Energy and Industrial Strategy,Intellectual Property Office,10/12/2021,Pay Costs,Projects,Alexander Mann Solutions Limited,2461850,"4,410.42",Not Applicable
Department for Business Energy and Industrial Strategy,Intellectual Property Office,10/12/2021,Pay Costs,IT Directorate,Alexander Mann Solutions Limited,2461851,"2,395.15",Not Applicable
Department for Business Energy and Industrial Strategy,Intellectual Property Office,13/12/2021,Pay Costs,IT Directorate,Alexander Mann Solutions Limited,2461852,"7,181.76",Not Applicable
Department for Business Energy and Industrial Strategy,Intellectual Property Office,10/12/2021,Pay Costs,Projects,Alexander Mann Solutions Limited,2461853,"3,695.64",Not Applicable
Department for Business Energy and Industrial Strategy,Intellectual Property Office,10/12/2021,Pay Costs,Finance Directorate,Alexander Mann Solutions Limited,2461854,674.44,Not Applicable
Department for Business Energy and Industrial Strategy,Intellectual Property Office,10/12/2021,Pay Costs,Patent Directorate,Alexander Mann Solutions Limited,2461855,"1,244.71",Not Applicable
Department for Business Energy and Industrial Strategy,Intellectual Property Office,10/12/2021,Pay Costs,People Places & Serv Directorate,Alexander Mann Solutions Limited,2461856,"1,330.64",Not Applicable
Department for Business Energy and Industrial Strategy,Intellectual Property Office,10/12/2021,Pay Costs,Patent Directorate,Alexander Mann Solutions Limited,2461857,566.28,Not Applicable
Department for Business Energy and Industrial Strategy,Intellectual Property Office,10/12/2021,Pay Costs,IT Directorate,Alexander Mann Solutions Limited,2461858,"6,048.60",Not Applicable
Department for Business Energy and Industrial Strategy,Intellectual Property Office,10/12/2021,Pay Costs,Finance Directorate,Alexander Mann Solutions Limited,2461859,688.20,Not Applicable
Department for Business Energy and Industrial Strategy,Intellectual Property Office,10/12/2021,Pay Costs,IT Directorate,Alexander Mann Solutions Limited,2461860,"2,047.68",Not Applicable
Department for Business Energy and Industrial Strategy,Intellectual Property Office,10/12/2021,Pay Costs,IT Directorate,Alexander Mann Solutions Limited,2461861,"3,695.58",Not Applicable
Department for Business Energy and Industrial Strategy,Intellectual Property Office,10/12/2021,Pay Costs,IT Directorate,Alexander Mann Solutions Limited,2461862,"5,999.40",Not Applicable
Department for Business Energy and Industrial Strategy,Intellectual Property Office,10/12/2021,Pay Costs,Patent Directorate,Alexander Mann Solutions Limited,2461863,"1,290.60",Not Applicable
Department for Business Energy and Industrial Strategy,Intellectual Property Office,10/12/2021,Pay Costs,Projects,Alexander Mann Solutions Limited,2461864,"3,465.30",Not Applicable
Department for Business Energy and Industrial Strategy,Intellectual Property Office,10/12/2021,Pay Costs,IT Directorate,Alexander Mann Solutions Limited,2461865,"2,727.00",Not Applicable
Department for Business Energy and Industrial Strategy,Intellectual Property Office,17/12/2021,Pay Costs,IT Directorate,Alexander Mann Solutions Limited,2466417,"4,192.74",Not Applicable
Department for Business Energy and Industrial Strategy,Intellectual Property Office,17/12/2021,Pay Costs,IT Directorate,Alexander Mann Solutions Limited,2466418,"3,448.10",Not Applicable
Department for Business Energy and Industrial Strategy,Intellectual Property Office,17/12/2021,Pay Costs,IT Directorate,Alexander Mann Solutions Limited,2466419,"2,930.40",Not Applicable
Department for Business Energy and Industrial Strategy,Intellectual Property Office,20/12/2021,Pay Costs,IT Directorate,Alexander Mann Solutions Limited,2466420,"8,257.15",Not Applicable
Department for Business Energy and Industrial Strategy,Intellectual Property Office,20/12/2021,Pay Costs,Patent Directorate,Alexander Mann Solutions Limited,2466421,812.38,Not Applicable
Department for Business Energy and Industrial Strategy,Intellectual Property Office,17/12/2021,Pay Costs,IT Directorate,Alexander Mann Solutions Limited,2466423,"3,532.87",Not Applicable
Department for Business Energy and Industrial Strategy,Intellectual Property Office,17/12/2021,Pay Costs,People Places & Serv Directorate,Alexander Mann Solutions Limited,2466424,865.36,Not Applicable
Department for Business Energy and Industrial Strategy,Intellectual Property Office,20/12/2021,Pay Costs,People Places & Serv Directorate,Alexander Mann Solutions Limited,2466425,662.00,Not Applicable
Department for Business Energy and Industrial Strategy,Intellectual Property Office,17/12/2021,Pay Costs,Patent Directorate,Alexander Mann Solutions Limited,2466426,645.30,Not Applicable
Department for Business Energy and Industrial Strategy,Intellectual Property Office,17/12/2021,Pay Costs,Patent Directorate,Alexander Mann Solutions Limited,2466427,636.70,Not Applicable
Department for Business Energy and Industrial Strategy,Intellectual Property Office,17/12/2021,Pay Costs,Patent Directorate,Alexander Mann Solutions Limited,2466428,585.07,Not Applicable
Department for Business Energy and Industrial Strategy,Intellectual Property Office,17/12/2021,Pay Costs,IT Directorate,Alexander Mann Solutions Limited,2466429,"3,514.32",Not Applicable
Department for Business Energy and Industrial Strategy,Intellectual Property Office,17/12/2021,Pay Costs,Patent Directorate,Alexander Mann Solutions Limited,2466430,615.19,Not Applicable
Department for Business Energy and Industrial Strategy,Intellectual Property Office,17/12/2021,Pay Costs,Patent Directorate,Alexander Mann Solutions Limited,2466431,645.30,Not Applicable
Department for Business Energy and Industrial Strategy,Intellectual Property Office,17/12/2021,Pay Costs,IT Directorate,Alexander Mann Solutions Limited,2466432,"3,599.58",Not Applicable
Department for Business Energy and Industrial Strategy,Intellectual Property Office,17/12/2021,Pay Costs,Patent Directorate,Alexander Mann Solutions Limited,2466433,516.24,Not Applicable
Department for Business Energy and Industrial Strategy,Intellectual Property Office,17/12/2021,Pay Costs,IT Directorate,Alexander Mann Solutions Limited,2466434,"4,410.42",Not Applicable
Department for Business Energy and Industrial Strategy,Intellectual Property Office,17/12/2021,Pay Costs,Trade Mark Directorate,Alexander Mann Solutions Limited,2466435,764.57,Not Applicable
Department for Business Energy and Industrial Strategy,Intellectual Property Office,20/12/2021,Pay Costs,Trade Mark Directorate,Alexander Mann Solutions Limited,2466436,764.57,Not Applicable
Department for Business Energy and Industrial Strategy,Intellectual Property Office,20/12/2021,Pay Costs,Trade Mark Directorate,Alexander Mann Solutions Limited,2466439,"1,229.52",Not Applicable
Department for Business Energy and Industrial Strategy,Intellectual Property Office,20/12/2021,Pay Costs,Trade Mark Directorate,Alexander Mann Solutions Limited,2466440,"1,529.14",Not Applicable
Department for Business Energy and Industrial Strategy,Intellectual Property Office,20/12/2021,Pay Costs,Trade Mark Directorate,Alexander Mann Solutions Limited,2466441,619.92,Not Applicable
Department for Business Energy and Industrial Strategy,Intellectual Property Office,20/12/2021,Pay Costs,Trade Mark Directorate,Alexander Mann Solutions Limited,2466442,764.57,Not Applicable
Department for Business Energy and Industrial Strategy,Intellectual Property Office,20/12/2021,Pay Costs,Trade Mark Directorate,Alexander Mann Solutions Limited,2466443,619.92,Not Applicable
Department for Business Energy and Industrial Strategy,Intellectual Property Office,20/12/2021,Pay Costs,Trade Mark Directorate,Alexander Mann Solutions Limited,2466444,764.57,Not Applicable
Department for Business Energy and Industrial Strategy,Intellectual Property Office,20/12/2021,Pay Costs,Trade Mark Directorate,Alexander Mann Solutions Limited,2466445,764.57,Not Applicable
Department for Business Energy and Industrial Strategy,Intellectual Property Office,20/12/2021,Pay Costs,Trade Mark Directorate,Alexander Mann Solutions Limited,2466446,764.57,Not Applicable
Department for Business Energy and Industrial Strategy,Intellectual Property Office,20/12/2021,Pay Costs,Trade Mark Directorate,Alexander Mann Solutions Limited,2466447,764.57,Not Applicable
Department for Business Energy and Industrial Strategy,Intellectual Property Office,17/12/2021,Pay Costs,Trade Mark Directorate,Alexander Mann Solutions Limited,2466449,764.57,Not Applicable
Department for Business Energy and Industrial Strategy,Intellectual Property Office,17/12/2021,Pay Costs,Patent Directorate,Alexander Mann Solutions Limited,2466450,698.41,Not Applicable
Department for Business Energy and Industrial Strategy,Intellectual Property Office,17/12/2021,Pay Costs,IT Directorate,Alexander Mann Solutions Limited,2466451,"2,454.26",Not Applicable
Department for Business Energy and Industrial Strategy,Intellectual Property Office,17/12/2021,Pay Costs,IT Directorate,Alexander Mann Solutions Limited,2466452,"3,920.04",Not Applicable
Department for Business Energy and Industrial Strategy,Intellectual Property Office,20/12/2021,Pay Costs,IT Directorate,Alexander Mann Solutions Limited,2466453,"3,465.30",Not Applicable
Department for Business Energy and Industrial Strategy,Intellectual Property Office,20/12/2021,Pay Costs,Projects,Alexander Mann Solutions Limited,2466454,"4,157.56",Not Applicable
Department for Business Energy and Industrial Strategy,Intellectual Property Office,20/12/2021,Pay Costs,IT Directorate,Alexander Mann Solutions Limited,2466455,"4,090.44",Not Applicable
Department for Business Energy and Industrial Strategy,Intellectual Property Office,17/12/2021,Pay Costs,Projects,Alexander Mann Solutions Limited,2466456,"3,780.36",Not Applicable
Department for Business Energy and Industrial Strategy,Intellectual Property Office,20/12/2021,Pay Costs,Patent Directorate,Alexander Mann Solutions Limited,2466457,636.70,Not Applicable
Department for Business Energy and Industrial Strategy,Intellectual Property Office,20/12/2021,Pay Costs,IT Directorate,Alexander Mann Solutions Limited,2466458,"2,440.62",Not Applicable
Department for Business Energy and Industrial Strategy,Intellectual Property Office,20/12/2021,Pay Costs,Patent Directorate,Alexander Mann Solutions Limited,2466460,602.28,Not Applicable
Department for Business Energy and Industrial Strategy,Intellectual Property Office,20/12/2021,Pay Costs,Patent Directorate,Alexander Mann Solutions Limited,2466461,991.08,Not Applicable
Department for Business Energy and Industrial Strategy,Intellectual Property Office,20/12/2021,Pay Costs,IT Directorate,Alexander Mann Solutions Limited,2466462,"2,255.58",Not Applicable
Department for Business Energy and Industrial Strategy,Intellectual Property Office,20/12/2021,Pay Costs,Patent Directorate,Alexander Mann Solutions Limited,2466463,618.19,Not Applicable
Department for Business Energy and Industrial Strategy,Intellectual Property Office,20/12/2021,Pay Costs,Patent Directorate,Alexander Mann Solutions Limited,2466464,681.50,Not Applicable
Department for Business Energy and Industrial Strategy,Intellectual Property Office,20/12/2021,Pay Costs,Patent Directorate,Alexander Mann Solutions Limited,2466465,698.41,Not Applicable
Department for Business Energy and Industrial Strategy,Intellectual Property Office,20/12/2021,Pay Costs,Patent Directorate,Alexander Mann Solutions Limited,2466466,556.85,Not Applicable
Department for Business Energy and Industrial Strategy,Intellectual Property Office,20/12/2021,Pay Costs,Innovation Directorate,Alexander Mann Solutions Limited,2466467,674.44,Not Applicable
Department for Business Energy and Industrial Strategy,Intellectual Property Office,20/12/2021,Pay Costs,Patent Directorate,Alexander Mann Solutions Limited,2466468,645.30,Not Applicable
Department for Business Energy and Industrial Strategy,Intellectual Property Office,20/12/2021,Pay Costs,Patent Directorate,Alexander Mann Solutions Limited,2466469,610.06,Not Applicable
Department for Business Energy and Industrial Strategy,Intellectual Property Office,20/12/2021,Pay Costs,IT Directorate,Alexander Mann Solutions Limited,2466471,"2,124.74",Not Applicable
Department for Business Energy and Industrial Strategy,Intellectual Property Office,20/12/2021,Pay Costs,IT Directorate,Alexander Mann Solutions Limited,2466472,"3,590.88",Not Applicable
Department for Business Energy and Industrial Strategy,Intellectual Property Office,20/12/2021,Pay Costs,IT Directorate,Alexander Mann Solutions Limited,2466473,"5,544.48",Not Applicable
Department for Business Energy and Industrial Strategy,Intellectual Property Office,20/12/2021,Pay Costs,Projects,Alexander Mann Solutions Limited,2466474,"3,695.64",Not Applicable
Department for Business Energy and Industrial Strategy,Intellectual Property Office,20/12/2021,Pay Costs,Finance Directorate,Alexander Mann Solutions Limited,2466475,674.44,Not Applicable
Department for Business Energy and Industrial Strategy,Intellectual Property Office,20/12/2021,Pay Costs,Patent Directorate,Alexander Mann Solutions Limited,2466476,622.36,Not Applicable
Department for Business Energy and Industrial Strategy,Intellectual Property Office,20/12/2021,Pay Costs,Finance Directorate,Alexander Mann Solutions Limited,2466477,"4,311.47",Not Applicable
Department for Business Energy and Industrial Strategy,Intellectual Property Office,20/12/2021,Pay Costs,Patent Directorate,Alexander Mann Solutions Limited,2466478,698.41,Not Applicable
Department for Business Energy and Industrial Strategy,Intellectual Property Office,20/12/2021,Pay Costs,IT Directorate,Alexander Mann Solutions Limited,2466479,"3,024.30",Not Applicable
Department for Business Energy and Industrial Strategy,Intellectual Property Office,17/12/2021,Pay Costs,Finance Directorate,Alexander Mann Solutions Limited,2466480,688.20,Not Applicable
Department for Business Energy and Industrial Strategy,Intellectual Property Office,17/12/2021,Pay Costs,IT Directorate,Alexander Mann Solutions Limited,2466481,"3,276.29",Not Applicable
Department for Business Energy and Industrial Strategy,Intellectual Property Office,17/12/2021,Pay Costs,IT Directorate,Alexander Mann Solutions Limited,2466482,"3,695.58",Not Applicable
Department for Business Energy and Industrial Strategy,Intellectual Property Office,20/12/2021,Pay Costs,Patent Directorate,Alexander Mann Solutions Limited,2466483,"7,906.93",Not Applicable
Department for Business Energy and Industrial Strategy,Intellectual Property Office,17/12/2021,Pay Costs,Projects,Alexander Mann Solutions Limited,2466484,"3,465.30",Not Applicable
Department for Business Energy and Industrial Strategy,Intellectual Property Office,17/12/2021,Pay Costs,IT Directorate,Alexander Mann Solutions Limited,2466485,"2,727.00",Not Applicable
Department for Business Energy and Industrial Strategy,Intellectual Property Office,23/12/2021,Pay Costs,IT Directorate,Alexander Mann Solutions Limited,2471054,"4,192.74",Not Applicable
Department for Business Energy and Industrial Strategy,Intellectual Property Office,23/12/2021,Pay Costs,IT Directorate,Alexander Mann Solutions Limited,2471055,"6,253.19",Not Applicable
Department for Business Energy and Industrial Strategy,Intellectual Property Office,23/12/2021,Pay Costs,IT Directorate,Alexander Mann Solutions Limited,2471056,"2,930.40",Not Applicable
Department for Business Energy and Industrial Strategy,Intellectual Property Office,23/12/2021,Pay Costs,Projects,Alexander Mann Solutions Limited,2471057,"1,383.10",Not Applicable
Department for Business Energy and Industrial Strategy,Intellectual Property Office,23/12/2021,Pay Costs,IT Directorate,Alexander Mann Solutions Limited,2471059,"3,621.60",Not Applicable
Department for Business Energy and Industrial Strategy,Intellectual Property Office,23/12/2021,Pay Costs,People Places & Serv Directorate,Alexander Mann Solutions Limited,2471060,526.24,Not Applicable
Department for Business Energy and Industrial Strategy,Intellectual Property Office,31/12/2021,Pay Costs,IT Directorate,Alexander Mann Solutions Limited,2471061,"9,239.04",Not Applicable
Department for Business Energy and Industrial Strategy,Intellectual Property Office,23/12/2021,Pay Costs,Patent Directorate,Alexander Mann Solutions Limited,2471062,636.70,Not Applicable
Department for Business Energy and Industrial Strategy,Intellectual Property Office,23/12/2021,Pay Costs,Patent Directorate,Alexander Mann Solutions Limited,2471063,636.70,Not Applicable
Department for Business Energy and Industrial Strategy,Intellectual Property Office,23/12/2021,Pay Costs,Patent Directorate,Alexander Mann Solutions Limited,2471064,636.70,Not Applicable
Department for Business Energy and Industrial Strategy,Intellectual Property Office,23/12/2021,Pay Costs,IT Directorate,Alexander Mann Solutions Limited,2471065,"3,538.73",Not Applicable
Department for Business Energy and Industrial Strategy,Intellectual Property Office,31/12/2021,Pay Costs,Projects,Alexander Mann Solutions Limited,2471066,"14,365.37",Not Applicable
Department for Business Energy and Industrial Strategy,Intellectual Property Office,23/12/2021,Pay Costs,Trade Mark Directorate,Alexander Mann Solutions Limited,2471067,"1,529.14",Not Applicable
Department for Business Energy and Industrial Strategy,Intellectual Property Office,23/12/2021,Pay Costs,IT Directorate,Alexander Mann Solutions Limited,2471068,"6,839.21",Not Applicable
Department for Business Energy and Industrial Strategy,Intellectual Property Office,23/12/2021,Pay Costs,IT Directorate,Alexander Mann Solutions Limited,2471069,"4,410.42",Not Applicable
Department for Business Energy and Industrial Strategy,Intellectual Property Office,23/12/2021,Pay Costs,Trade Mark Directorate,Alexander Mann Solutions Limited,2471070,"1,229.51",Not Applicable
Department for Business Energy and Industrial Strategy,Intellectual Property Office,23/12/2021,Pay Costs,Trade Mark Directorate,Alexander Mann Solutions Limited,2471071,764.57,Not Applicable
Department for Business Energy and Industrial Strategy,Intellectual Property Office,23/12/2021,Pay Costs,Trade Mark Directorate,Alexander Mann Solutions Limited,2471072,712.91,Not Applicable
Department for Business Energy and Industrial Strategy,Intellectual Property Office,23/12/2021,Pay Costs,Trade Mark Directorate,Alexander Mann Solutions Limited,2471073,"1,529.14",Not Applicable
Department for Business Energy and Industrial Strategy,Intellectual Property Office,23/12/2021,Pay Costs,Trade Mark Directorate,Alexander Mann Solutions Limited,2471074,609.59,Not Applicable
Department for Business Energy and Industrial Strategy,Intellectual Property Office,23/12/2021,Pay Costs,Trade Mark Directorate,Alexander Mann Solutions Limited,2471075,702.58,Not Applicable
Department for Business Energy and Industrial Strategy,Intellectual Property Office,31/12/2021,Pay Costs,Trade Mark Directorate,Alexander Mann Solutions Limited,2471076,"1,529.14",Not Applicable
Department for Business Energy and Industrial Strategy,Intellectual Property Office,23/12/2021,Pay Costs,Trade Mark Directorate,Alexander Mann Solutions Limited,2471077,614.76,Not Applicable
Department for Business Energy and Industrial Strategy,Intellectual Property Office,23/12/2021,Pay Costs,Trade Mark Directorate,Alexander Mann Solutions Limited,2471078,764.57,Not Applicable
Department for Business Energy and Industrial Strategy,Intellectual Property Office,23/12/2021,Pay Costs,Trade Mark Directorate,Alexander Mann Solutions Limited,2471079,764.57,Not Applicable
Department for Business Energy and Industrial Strategy,Intellectual Property Office,23/12/2021,Pay Costs,Trade Mark Directorate,Alexander Mann Solutions Limited,2471080,919.55,Not Applicable
Department for Business Energy and Industrial Strategy,Intellectual Property Office,23/12/2021,Pay Costs,Trade Mark Directorate,Alexander Mann Solutions Limited,2471081,"1,064.20",Not Applicable
Department for Business Energy and Industrial Strategy,Intellectual Property Office,23/12/2021,Pay Costs,Trade Mark Directorate,Alexander Mann Solutions Limited,2471082,764.57,Not Applicable
Department for Business Energy and Industrial Strategy,Intellectual Property Office,23/12/2021,Pay Costs,Patent Directorate,Alexander Mann Solutions Limited,2471083,566.28,Not Applicable
Department for Business Energy and Industrial Strategy,Intellectual Property Office,23/12/2021,Pay Costs,IT Directorate,Alexander Mann Solutions Limited,2471084,"7,840.08",Not Applicable
Department for Business Energy and Industrial Strategy,Intellectual Property Office,23/12/2021,Pay Costs,IT Directorate,Alexander Mann Solutions Limited,2471085,"3,465.30",Not Applicable
Department for Business Energy and Industrial Strategy,Intellectual Property Office,23/12/2021,Pay Costs,Projects,Alexander Mann Solutions Limited,2471086,831.52,Not Applicable
Department for Business Energy and Industrial Strategy,Intellectual Property Office,23/12/2021,Pay Costs,IT Directorate,Alexander Mann Solutions Limited,2471087,"8,180.88",Not Applicable
Department for Business Energy and Industrial Strategy,Intellectual Property Office,23/12/2021,Pay Costs,IT Directorate,Alexander Mann Solutions Limited,2471089,"2,440.62",Not Applicable
Department for Business Energy and Industrial Strategy,Intellectual Property Office,23/12/2021,Pay Costs,Patent Directorate,Alexander Mann Solutions Limited,2471091,602.28,Not Applicable
Department for Business Energy and Industrial Strategy,Intellectual Property Office,31/12/2021,Pay Costs,People Places & Serv Directorate,Alexander Mann Solutions Limited,2471092,"12,601.14",Not Applicable
Department for Business Energy and Industrial Strategy,Intellectual Property Office,23/12/2021,Pay Costs,Patent Directorate,Alexander Mann Solutions Limited,2471093,610.06,Not Applicable
Department for Business Energy and Industrial Strategy,Intellectual Property Office,23/12/2021,Pay Costs,IT Directorate,Alexander Mann Solutions Limited,2471094,"2,255.58",Not Applicable
Department for Business Energy and Industrial Strategy,Intellectual Property Office,23/12/2021,Pay Costs,Patent Directorate,Alexander Mann Solutions Limited,2471095,547.40,Not Applicable
Department for Business Energy and Industrial Strategy,Intellectual Property Office,23/12/2021,Pay Costs,Patent Directorate,Alexander Mann Solutions Limited,2471096,"1,444.02",Not Applicable
Department for Business Energy and Industrial Strategy,Intellectual Property Office,23/12/2021,Pay Costs,Patent Directorate,Alexander Mann Solutions Limited,2471097,698.41,Not Applicable
Department for Business Energy and Industrial Strategy,Intellectual Property Office,23/12/2021,Pay Costs,Patent Directorate,Alexander Mann Solutions Limited,2471098,"1,311.89",Not Applicable
Department for Business Energy and Industrial Strategy,Intellectual Property Office,23/12/2021,Pay Costs,Innovation Directorate,Alexander Mann Solutions Limited,2471099,698.41,Not Applicable
Department for Business Energy and Industrial Strategy,Intellectual Property Office,23/12/2021,Pay Costs,Patent Directorate,Alexander Mann Solutions Limited,2471100,610.06,Not Applicable
Department for Business Energy and Industrial Strategy,Intellectual Property Office,23/12/2021,Pay Costs,Projects,Alexander Mann Solutions Limited,2471102,"4,410.42",Not Applicable
Department for Business Energy and Industrial Strategy,Intellectual Property Office,23/12/2021,Pay Costs,IT Directorate,Alexander Mann Solutions Limited,2471103,"4,489.57",Not Applicable
Department for Business Energy and Industrial Strategy,Intellectual Property Office,23/12/2021,Pay Costs,IT Directorate,Alexander Mann Solutions Limited,2471104,"3,590.88",Not Applicable
Department for Business Energy and Industrial Strategy,Intellectual Property Office,31/12/2021,Pay Costs,IT Directorate,Alexander Mann Solutions Limited,2471105,"5,544.48",Not Applicable
Department for Business Energy and Industrial Strategy,Intellectual Property Office,23/12/2021,Pay Costs,Projects,Alexander Mann Solutions Limited,2471106,"3,695.64",Not Applicable
Department for Business Energy and Industrial Strategy,Intellectual Property Office,23/12/2021,Pay Costs,Finance Directorate,Alexander Mann Solutions Limited,2471107,674.44,Not Applicable
Department for Business Energy and Industrial Strategy,Intellectual Property Office,23/12/2021,Pay Costs,Finance Directorate,Alexander Mann Solutions Limited,2471108,"2,463.70",Not Applicable
Department for Business Energy and Industrial Strategy,Intellectual Property Office,23/12/2021,Pay Costs,People Places & Serv Directorate,Alexander Mann Solutions Limited,2471109,993.43,Not Applicable
Department for Business Energy and Industrial Strategy,Intellectual Property Office,23/12/2021,Pay Costs,Patent Directorate,Alexander Mann Solutions Limited,2471110,698.41,Not Applicable
Department for Business Energy and Industrial Strategy,Intellectual Property Office,23/12/2021,Pay Costs,IT Directorate,Alexander Mann Solutions Limited,2471111,"3,024.30",Not Applicable
Department for Business Energy and Industrial Strategy,Intellectual Property Office,31/12/2021,Pay Costs,Finance Directorate,Alexander Mann Solutions Limited,2471112,"6,984.12",Not Applicable
Department for Business Energy and Industrial Strategy,Intellectual Property Office,23/12/2021,Pay Costs,IT Directorate,Alexander Mann Solutions Limited,2471113,"7,391.16",Not Applicable
Department for Business Energy and Industrial Strategy,Intellectual Property Office,23/12/2021,Pay Costs,IT Directorate,Alexander Mann Solutions Limited,2471114,"5,999.40",Not Applicable
Department for Business Energy and Industrial Strategy,Intellectual Property Office,23/12/2021,Pay Costs,Projects,Alexander Mann Solutions Limited,2471115,"3,465.30",Not Applicable
Department for Business Energy and Industrial Strategy,Intellectual Property Office,23/12/2021,Pay Costs,Projects,Alexander Mann Solutions Limited,2471116,"5,040.48",Not Applicable
Department for Business Energy and Industrial Strategy,Intellectual Property Office,23/12/2021,Pay Costs,IT Directorate,Alexander Mann Solutions Limited,2471117,"2,727.00",Not Applicable
Department for Business Energy and Industrial Strategy,Intellectual Property Office,23/12/2021,Pay Costs,Projects,Alexander Mann Solutions Limited,2471118,"4,090.44",Not Applicable
Department for Business Energy and Industrial Strategy,Intellectual Property Office,31/12/2021,Pay Costs,IT Directorate,Alexander Mann Solutions Limited,2475347,"4,192.74",Not Applicable
Department for Business Energy and Industrial Strategy,Intellectual Property Office,31/12/2021,Pay Costs,IT Directorate,Alexander Mann Solutions Limited,2475348,"2,336.40",Not Applicable
Department for Business Energy and Industrial Strategy,Intellectual Property Office,31/12/2021,Pay Costs,IT Directorate,Alexander Mann Solutions Limited,2475349,710.74,Not Applicable
Department for Business Energy and Industrial Strategy,Intellectual Property Office,31/12/2021,Pay Costs,IT Directorate,Alexander Mann Solutions Limited,2475350,"7,589.65",Not Applicable
Department for Business Energy and Industrial Strategy,Intellectual Property Office,31/12/2021,Pay Costs,Patent Directorate,Alexander Mann Solutions Limited,2475352,636.70,Not Applicable
Department for Business Energy and Industrial Strategy,Intellectual Property Office,31/12/2021,Pay Costs,Patent Directorate,Alexander Mann Solutions Limited,2475353,516.24,Not Applicable
Department for Business Energy and Industrial Strategy,Intellectual Property Office,31/12/2021,Pay Costs,Trade Mark Directorate,Alexander Mann Solutions Limited,2475355,764.57,Not Applicable
Department for Business Energy and Industrial Strategy,Intellectual Property Office,31/12/2021,Pay Costs,Patent Directorate,Alexander Mann Solutions Limited,2475356,516.24,Not Applicable
Department for Business Energy and Industrial Strategy,Intellectual Property Office,31/12/2021,Pay Costs,Patent Directorate,Alexander Mann Solutions Limited,2475358,645.30,Not Applicable
Department for Business Energy and Industrial Strategy,Intellectual Property Office,31/12/2021,Pay Costs,Trade Mark Directorate,Alexander Mann Solutions Limited,2475359,764.57,Not Applicable
Department for Business Energy and Industrial Strategy,Intellectual Property Office,31/12/2021,Pay Costs,Trade Mark Directorate,Alexander Mann Solutions Limited,2475360,764.57,Not Applicable
Department for Business Energy and Industrial Strategy,Intellectual Property Office,31/12/2021,Pay Costs,Trade Mark Directorate,Alexander Mann Solutions Limited,2475362,764.57,Not Applicable
Department for Business Energy and Industrial Strategy,Intellectual Property Office,31/12/2021,Pay Costs,Trade Mark Directorate,Alexander Mann Solutions Limited,2475363,764.57,Not Applicable
Department for Business Energy and Industrial Strategy,Intellectual Property Office,31/12/2021,Pay Costs,Trade Mark Directorate,Alexander Mann Solutions Limited,2475364,609.59,Not Applicable
Department for Business Energy and Industrial Strategy,Intellectual Property Office,31/12/2021,Pay Costs,Trade Mark Directorate,Alexander Mann Solutions Limited,2475366,764.57,Not Applicable
Department for Business Energy and Industrial Strategy,Intellectual Property Office,31/12/2021,Pay Costs,Trade Mark Directorate,Alexander Mann Solutions Limited,2475367,764.57,Not Applicable
Department for Business Energy and Industrial Strategy,Intellectual Property Office,31/12/2021,Pay Costs,Trade Mark Directorate,Alexander Mann Solutions Limited,2475368,764.57,Not Applicable
Department for Business Energy and Industrial Strategy,Intellectual Property Office,31/12/2021,Pay Costs,Trade Mark Directorate,Alexander Mann Solutions Limited,2475369,764.57,Not Applicable
Department for Business Energy and Industrial Strategy,Intellectual Property Office,31/12/2021,Pay Costs,Patent Directorate,Alexander Mann Solutions Limited,2475371,698.41,Not Applicable
Department for Business Energy and Industrial Strategy,Intellectual Property Office,31/12/2021,Pay Costs,Projects,Alexander Mann Solutions Limited,2475372,"3,780.36",Not Applicable
Department for Business Energy and Industrial Strategy,Intellectual Property Office,31/12/2021,Pay Costs,Patent Directorate,Alexander Mann Solutions Limited,2475373,507.64,Not Applicable
Department for Business Energy and Industrial Strategy,Intellectual Property Office,31/12/2021,Pay Costs,Patent Directorate,Alexander Mann Solutions Limited,2475375,602.28,Not Applicable
Department for Business Energy and Industrial Strategy,Intellectual Property Office,31/12/2021,Pay Costs,Patent Directorate,Alexander Mann Solutions Limited,2475376,610.06,Not Applicable
Department for Business Energy and Industrial Strategy,Intellectual Property Office,31/12/2021,Pay Costs,Innovation Directorate,Alexander Mann Solutions Limited,2475377,698.41,Not Applicable
Department for Business Energy and Industrial Strategy,Intellectual Property Office,31/12/2021,Pay Costs,Patent Directorate,Alexander Mann Solutions Limited,2475378,645.30,Not Applicable
Department for Business Energy and Industrial Strategy,Intellectual Property Office,31/12/2021,Pay Costs,Projects,Alexander Mann Solutions Limited,2475380,"7,056.67",Not Applicable
Department for Business Energy and Industrial Strategy,Intellectual Property Office,31/12/2021,Pay Costs,Finance Directorate,Alexander Mann Solutions Limited,2475381,533.17,Not Applicable
Department for Business Energy and Industrial Strategy,Intellectual Property Office,31/12/2021,Pay Costs,Patent Directorate,Alexander Mann Solutions Limited,2475382,622.36,Not Applicable
Department for Business Energy and Industrial Strategy,Intellectual Property Office,31/12/2021,Pay Costs,Finance Directorate,Alexander Mann Solutions Limited,2475383,"3,079.62",Not Applicable
Department for Business Energy and Industrial Strategy,Intellectual Property Office,31/12/2021,Pay Costs,IT Directorate,Alexander Mann Solutions Limited,2475385,"3,024.30",Not Applicable
Department for Business Energy and Industrial Strategy,Intellectual Property Office,31/12/2021,Pay Costs,Patent Directorate,Alexander Mann Solutions Limited,2475387,645.30,Not Applicable
Department for Business Energy and Industrial Strategy,Intellectual Property Office,31/12/2021,Pay Costs,Projects,Alexander Mann Solutions Limited,2475388,"3,465.30",Not Applicable
Department for Business Energy and Industrial Strategy,Intellectual Property Office,31/12/2021,Pay Costs,Projects,Alexander Mann Solutions Limited,2475389,"1,260.12",Not Applicable
Department for Business Energy and Industrial Strategy,Intellectual Property Office,31/12/2021,Pay Costs,IT Directorate,Alexander Mann Solutions Limited,2475390,"3,276.29",Not Applicable
Department for Business Energy and Industrial Strategy,Intellectual Property Office,13/12/2021,Pay Costs,Trade Mark Directorate,Alexander Mann Solutions Limited,29224,-568.26,Not Applicable
Department for Business Energy and Industrial Strategy,Intellectual Property Office,17/12/2021,Pay Costs,Patent Directorate,Alexander Mann Solutions Limited,29639,-671.21,Not Applicable
Department for Business Energy and Industrial Strategy,Intellectual Property Office,17/12/2021,Pay Costs,Patent Directorate,Alexander Mann Solutions Limited,29640,"-7,728.37",Not Applicable
Department for Business Energy and Industrial Strategy,Intellectual Property Office,23/12/2021,Pay Costs,Finance Directorate,Alexander Mann Solutions Limited,29832,"-3,441.00",Not Applicable
Department for Business Energy and Industrial Strategy,Intellectual Property Office,23/12/2021,Pay Costs,Trade Mark Directorate,Alexander Mann Solutions Limited,29833,-764.57,Not Applicable
Department for Business Energy and Industrial Strategy,Intellectual Property Office,23/12/2021,Pay Costs,Finance Directorate,Alexander Mann Solutions Limited,29834,"-2,752.80",Not Applicable
Department for Business Energy and Industrial Strategy,Intellectual Property Office,20/12/2021,Supporting UK Business,Innovation Directorate,JA Kemp,905694,"2,500.00",Not Applicable
Department for Business Energy and Industrial Strategy,Intellectual Property Office,07/12/2021,Miscellaneous Expenses General,People Places & Serv Directorate,Cyberis Limited,INV02083,"5,700.00",Not Applicable
Department for Business Energy and Industrial Strategy,Intellectual Property Office,08/12/2021,Staff Costs,People Places & Serv Directorate,Eliesha Training Ltd,22488,"1,782.00",Not Applicable
Department for Business Energy and Industrial Strategy,Intellectual Property Office,20/12/2021,Staff Costs,Trade Mark Directorate,Eliesha Training Ltd,22613,"1,128.00",Not Applicable
Department for Business Energy and Industrial Strategy,Intellectual Property Office,20/12/2021,Staff Costs,People Places & Serv Directorate,Eliesha Training Ltd,22614,"1,188.00",Not Applicable
Department for Business Energy and Industrial Strategy,Intellectual Property Office,17/12/2021,Pay Costs,Projects,Empyrean Digital Ltd,EMP-495,"252,911.86",Not Applicable
Department for Business Energy and Industrial Strategy,Intellectual Property Office,08/12/2021,Accommodation,People Places & Serv Directorate,Government Property Agency,00000001-13063,"-1,023.41",Not Applicable
Department for Business Energy and Industrial Strategy,Intellectual Property Office,08/12/2021,Accommodation,People Places & Serv Directorate,Government Property Agency,00000001-13072,"-8,220.93",Not Applicable
Department for Business Energy and Industrial Strategy,Intellectual Property Office,15/12/2021,Accommodation,People Places & Serv Directorate,Government Property Agency,00000001/13326,"120,278.51",Not Applicable
Department for Business Energy and Industrial Strategy,Intellectual Property Office,14/12/2021,Accommodation,People Places & Serv Directorate,Government Property Agency,00000001/13469,"37,376.11",Not Applicable
Department for Business Energy and Industrial Strategy,Intellectual Property Office,14/12/2021,Accommodation,People Places & Serv Directorate,Government Property Agency,00000001/13469,"5,452.38",Not Applicable
Department for Business Energy and Industrial Strategy,Intellectual Property Office,14/12/2021,Accommodation,People Places & Serv Directorate,Government Property Agency,00000001/13469,"40,664.54",Not Applicable
Department for Business Energy and Industrial Strategy,Intellectual Property Office,14/12/2021,Accommodation,People Places & Serv Directorate,Government Property Agency,00000001/13469,"12,725.00",Not Applicable
Department for Business Energy and Industrial Strategy,Intellectual Property Office,14/12/2021,Accommodation,People Places & Serv Directorate,Government Property Agency,00000001/13469,"1,029.46",Not Applicable
Department for Business Energy and Industrial Strategy,Intellectual Property Office,01/12/2021,Accommodation,People Places & Serv Directorate,Government Property Agency,00000001/13509,"88,622.88",Not Applicable
Department for Business Energy and Industrial Strategy,Intellectual Property Office,08/12/2021,Accommodation,People Places & Serv Directorate,Government Property Agency,00000001/13639,"175,032.55",Not Applicable
Department for Business Energy and Industrial Strategy,Intellectual Property Office,08/12/2021,Accommodation,People Places & Serv Directorate,Government Property Agency,00000001/13639,748.37,Not Applicable
Department for Business Energy and Industrial Strategy,Intellectual Property Office,31/12/2021,Accommodation,People Places & Serv Directorate,Government Property Agency,00000001/14605,"34,678.64",Not Applicable
Department for Business Energy and Industrial Strategy,Intellectual Property Office,02/12/2021,Marketing & Publicity,Innovation Directorate,AudienceNet,INV-1529,"36,000.00",Not Applicable
Department for Business Energy and Industrial Strategy,Intellectual Property Office,31/12/2021,Information Technology,IT Directorate,Tria Recruitment Limited,TRX-1818,"15,876.00",Not Applicable
Department for Business Energy and Industrial Strategy,Intellectual Property Office,21/12/2021,Marketing & Publicity,Innovation Directorate,Hub Exhibitions Limited,INV-0914,"3,600.00",Not Applicable
Department for Business Energy and Industrial Strategy,Intellectual Property Office,01/12/2021,Marketing & Publicity,Innovation Directorate,Axis12 Limited,INV-4281,"1,303.20",Not Applicable
Department for Business Energy and Industrial Strategy,Intellectual Property Office,20/12/2021,Supporting UK Business,Innovation Directorate,Taylor Vinters,4098858,"2,500.00",Not Applicable
Department for Business Energy and Industrial Strategy,Intellectual Property Office,31/12/2021,Supporting UK Business,Innovation Directorate,Adamson Jones IP Limited,22568,"2,500.00",Not Applicable
Department for Business Energy and Industrial Strategy,Intellectual Property Office,14/12/2021,Supporting UK Business,Innovation Directorate,S William Wallace & Co,1204,"2,500.00",Not Applicable
Department for Business Energy and Industrial Strategy,Intellectual Property Office,07/12/2021,Staff Costs,People Places & Serv Directorate,AKD Solutions Limited,INV-0796,"3,300.00",Not Applicable
Department for Business Energy and Industrial Strategy,Intellectual Property Office,02/12/2021,Staff Costs,People Places & Serv Directorate,AKD Solutions Limited,INV-0797,"1,650.00",Not Applicable
Department for Business Energy and Industrial Strategy,Intellectual Property Office,15/12/2021,Staff Costs,People Places & Serv Directorate,Leadership Through Data Limited,INV-01970,594.00,Not Applicable
Department for Business Energy and Industrial Strategy,Intellectual Property Office,22/12/2021,Miscellaneous Expenses General,Projects,iCoTech Group Ltd,INV-0193,787.50,Not Applicable
Department for Business Energy and Industrial Strategy,Intellectual Property Office,13/12/2021,Marketing & Publicity,People Places & Serv Directorate,Living With Disability,4069,834.00,Not Applicable
Department for Business Energy and Industrial Strategy,Intellectual Property Office,08/12/2021,Legal & Hearings,Trade Mark Directorate,8 New Square,61832-INVMH996,"1,440.00",Not Applicable
Department for Business Energy and Industrial Strategy,Intellectual Property Office,02/12/2021,Supporting UK Business,Innovation Directorate,Kate Butler IP Limited,112021IDUIPO01,"2,500.00",Not Applicable
Department for Business Energy and Industrial Strategy,Intellectual Property Office,09/12/2021,Supporting UK Business,Innovation Directorate,Kate Butler IP Limited,112021SMDIPO01,"2,244.00",Not Applicable
Department for Business Energy and Industrial Strategy,Intellectual Property Office,31/12/2021,Supporting UK Business,Innovation Directorate,Kate Butler IP Limited,122021ASLIPO01,"2,500.00",Not Applicable
Department for Business Energy and Industrial Strategy,Intellectual Property Office,31/12/2021,Supporting UK Business,Innovation Directorate,Kate Butler IP Limited,122021METIPO01,"2,500.00",Not Applicable
Department for Business Energy and Industrial Strategy,Intellectual Property Office,14/12/2021,Supporting UK Business,Innovation Directorate,Kate Butler IP Limited,122021RMLIPO02,"2,500.00",Not Applicable
Department for Business Energy and Industrial Strategy,Intellectual Property Office,31/12/2021,Supporting UK Business,Innovation Directorate,Kate Butler IP Limited,122021TBFIPO01,"2,500.00",Not Applicable
Department for Business Energy and Industrial Strategy,Intellectual Property Office,31/12/2021,Supporting UK Business,Innovation Directorate,Kate Butler IP Limited,P122021AMGIPO01,"2,500.00",Not Applicable
Department for Business Energy and Industrial Strategy,Intellectual Property Office,31/12/2021,Supporting UK Business,Innovation Directorate,Kate Butler IP Limited,P122021TVGIPO01,"2,500.00",Not Applicable
Department for Business Energy and Industrial Strategy,Intellectual Property Office,23/12/2021,Other FA at Cost,IT Directorate,ACS Systems UK Limited,INV410044,"12,627.48",Not Applicable
Department for Business Energy and Industrial Strategy,Intellectual Property Office,09/12/2021,Legal & Hearings,Trade Mark Directorate,Three New Square IP,46172,720.00,Not Applicable
Department for Business Energy and Industrial Strategy,Intellectual Property Office,08/12/2021,Legal & Hearings,Trade Mark Directorate,Three New Square IP,46287,"1,440.00",Not Applicable
Department for Business Energy and Industrial Strategy,Intellectual Property Office,22/12/2021,Supporting UK Business,Innovation Directorate,Panoramix Limited,223,"2,500.00",Not Applicable
Department for Business Energy and Industrial Strategy,Intellectual Property Office,14/12/2021,Supporting UK Business,Innovation Directorate,Panoramix Limited,236,"2,500.00",Not Applicable
Department for Business Energy and Industrial Strategy,Intellectual Property Office,20/12/2021,Supporting UK Business,Innovation Directorate,Panoramix Limited,237,"2,500.00",Not Applicable
Department for Business Energy and Industrial Strategy,Intellectual Property Office,31/12/2021,Supporting UK Business,Innovation Directorate,Panoramix Limited,247,"2,500.00",Not Applicable
Department for Business Energy and Industrial Strategy,Intellectual Property Office,31/12/2021,Supporting UK Business,Innovation Directorate,Panoramix Limited,248,"2,500.00",Not Applicable
Department for Business Energy and Industrial Strategy,Intellectual Property Office,02/12/2021,Supporting UK Business,Innovation Directorate,Panoramix Limited,262,"2,500.00",Not Applicable
Department for Business Energy and Industrial Strategy,Intellectual Property Office,16/12/2021,Supporting UK Business,Innovation Directorate,Panoramix Limited,266,"1,332.00",Not Applicable
Department for Business Energy and Industrial Strategy,Intellectual Property Office,31/12/2021,Supporting UK Business,Innovation Directorate,Panoramix Limited,268,"2,500.00",Not Applicable
Department for Business Energy and Industrial Strategy,Intellectual Property Office,31/12/2021,Supporting UK Business,Innovation Directorate,Panoramix Limited,269,"2,500.00",Not Applicable
Department for Business Energy and Industrial Strategy,Intellectual Property Office,31/12/2021,Supporting UK Business,Innovation Directorate,Panoramix Limited,289,"2,500.00",Not Applicable
Department for Business Energy and Industrial Strategy,Intellectual Property Office,14/12/2021,Miscellaneous Expenses General,People Places & Serv Directorate,MHR International UK Ltd,SIN142641,"1,560.00",Not Applicable
Department for Business Energy and Industrial Strategy,Intellectual Property Office,31/12/2021,Miscellaneous Expenses General,People Places & Serv Directorate,MHR International UK Ltd,SIN143466,"14,212.80",Not Applicable
Department for Business Energy and Industrial Strategy,Intellectual Property Office,07/12/2021,Marketing & Publicity,Innovation Directorate,Inspired Motive,INV-0610,"12,000.00",Not Applicable
Department for Business Energy and Industrial Strategy,Intellectual Property Office,31/12/2021,Supporting UK Business,Innovation Directorate,Claines Limited (T/A The Intellectual Pr,INV-1007,"2,500.00",Not Applicable
Department for Business Energy and Industrial Strategy,Intellectual Property Office,31/12/2021,Supporting UK Business,Innovation Directorate,Beuro IP Limited,INV-0237,"2,500.00",Not Applicable
Department for Business Energy and Industrial Strategy,Intellectual Property Office,16/12/2021,Legal & Hearings,Trade Mark Directorate,Iain Purvis QC,54636,720.00,Not Applicable
Department for Business Energy and Industrial Strategy,Intellectual Property Office,16/12/2021,Legal & Hearings,Trade Mark Directorate,Iain Purvis QC,55199,720.00,Not Applicable
Department for Business Energy and Industrial Strategy,Intellectual Property Office,17/12/2021,Staff Costs,People Places & Serv Directorate,IRG Advisors T/A Odgers Interim,21002783JRT84183,"10,552.50",Not Applicable
Department for Business Energy and Industrial Strategy,Intellectual Property Office,10/12/2021,Pay Costs,Projects,IRG Advisors T/A Odgers Interim,866701,"36,000.00",Not Applicable
Department for Business Energy and Industrial Strategy,Intellectual Property Office,24/12/2021,Information Technology,Patent Directorate,Content Online AB,7715,"132,598.08",Not Applicable
Department for Business Energy and Industrial Strategy,Intellectual Property Office,14/12/2021,Supporting UK Business,Innovation Directorate,Concept IP Services Limited,INV-19139,"2,500.00",Not Applicable
Department for Business Energy and Industrial Strategy,Intellectual Property Office,31/12/2021,Supporting UK Business,Innovation Directorate,Concept IP Services Limited,INV-19147,"2,500.00",Not Applicable
Department for Business Energy and Industrial Strategy,Intellectual Property Office,09/12/2021,Legal & Hearings,Patent Directorate,Womble Bond Dickinson (UK) LLP,3601262,"1,703.32",Not Applicable
Department for Business Energy and Industrial Strategy,Intellectual Property Office,31/12/2021,Legal & Hearings,Patent Directorate,Womble Bond Dickinson (UK) LLP,3605751,"1,263.35",Not Applicable
Department for Business Energy and Industrial Strategy,Intellectual Property Office,23/12/2021,Information Technology,IT Directorate,Hewlett Packard International Bank DAC,4.00901E+11,"17,859.29",Not Applicable
Department for Business Energy and Industrial Strategy,Intellectual Property Office,23/12/2021,Information Technology,IT Directorate,Hewlett Packard International Bank DAC,4.00901E+11,"18,113.07",Not Applicable
Department for Business Energy and Industrial Strategy,Intellectual Property Office,01/12/2021,Supporting UK Business,International Policy Directorate,Taylor Vinters Via LLC,210838,"2,330.00",Not Applicable
Department for Business Energy and Industrial Strategy,Intellectual Property Office,07/12/2021,Pay Costs,Finance Directorate,Seymour John (Cardiff) Limited,499,"6,133.80",Not Applicable
Department for Business Energy and Industrial Strategy,Intellectual Property Office,21/12/2021,Pay Costs,Finance Directorate,Seymour John (Cardiff) Limited,501,"6,133.80",Not Applicable
Department for Business Energy and Industrial Strategy,Intellectual Property Office,31/12/2021,Supporting UK Business,Innovation Directorate,Strachan IP Ltd,INV-0063,"2,500.00",Not Applicable
Department for Business Energy and Industrial Strategy,Intellectual Property Office,14/12/2021,Supporting UK Business,Innovation Directorate,Arctic Alliance Limited (Aalbun),INV/2021/0461,"2,500.00",Not Applicable
Department for Business Energy and Industrial Strategy,Intellectual Property Office,06/12/2021,Other FA at Cost,Projects,NTT DATA UK Limited,4020155,"1,016,766.00",Not Applicable
Department for Business Energy and Industrial Strategy,Intellectual Property Office,14/12/2021,Other FA at Cost,Projects,NTT DATA UK Limited,4020264,"146,866.20",Not Applicable
Department for Business Energy and Industrial Strategy,Intellectual Property Office,15/12/2021,Other FA at Cost,Projects,NTT DATA UK Limited,4020414,"723,033.60",Not Applicable
Department for Business Energy and Industrial Strategy,Intellectual Property Office,09/12/2021,Supporting UK Business,Innovation Directorate,Mathys & Squire Consulting Ltd,INV-11279,"2,500.00",Not Applicable
Department for Business Energy and Industrial Strategy,Intellectual Property Office,21/12/2021,Other FA at Cost,IT Directorate,Pure Technology Group - T/A Pure Data So,SINV00201003,"1,293.60",Not Applicable
Department for Business Energy and Industrial Strategy,Intellectual Property Office,31/12/2021,Other FA at Cost,IT Directorate,Pure Technology Group - T/A Pure Data So,SINV00201005,587.76,Not Applicable
Department for Business Energy and Industrial Strategy,Intellectual Property Office,24/12/2021,Staff Costs,Projects,MFE Management Ltd,210174,"1,560.00",Not Applicable
Department for Business Energy and Industrial Strategy,Intellectual Property Office,02/12/2021,Accommodation,People Places & Serv Directorate,Plastor Limited,119898,"4,522.80",Not Applicable
Department for Business Energy and Industrial Strategy,Intellectual Property Office,20/12/2021,Staff Costs,IT Directorate,iPeople Associates Limited (trading as,8012222,"2,277.13",Not Applicable
Department for Business Energy and Industrial Strategy,Intellectual Property Office,20/12/2021,Staff Costs,IT Directorate,iPeople Associates Limited (trading as,8012226,"2,459.47",Not Applicable
Department for Business Energy and Industrial Strategy,Intellectual Property Office,01/12/2021,Staff Costs,Trade Mark Directorate,J & S Development Services Ltd,INV-1137,"1,500.00",Not Applicable
Department for Business Energy and Industrial Strategy,Intellectual Property Office,10/12/2021,Information Technology,IT Directorate,Personal expenses,UK01-2021000674-,"4,320.00",Not Applicable
Department for Business Energy and Industrial Strategy,Intellectual Property Office,07/12/2021,Supporting UK Business,International Policy Directorate,Skriptorium Global Ltd,SI-445,768.00,Not Applicable
,,,,,,H57720220101fqvrpdvgk,79.25,Not Applicable
,,,,,,H57720211231fssocxihm,115.22,Not Applicable
,,,,,,H57720211231oxrldqdjf,61.09,Not Applicable
,,,,,,H57720211228jlyfonvdb,39.00,Not Applicable
,,,,,,H57720211228wsjumhxnj,109.02,Not Applicable
,,,,,,H57720211225dqoulrtnu,118.85,Not Applicable
,,,,,,H57720211224brcicnzjd,400.00,Not Applicable
,,,,,,H57720211224brneyxqhj,-50.00,Not Applicable
,,,,,,H57720211224edphauudm,-50.00,Not Applicable
,,,,,,H57720211224gktejnihm,27.92,Not Applicable
,,,,,,H57720211224idmoweayy,114.91,Not Applicable
,,,,,,H57720211224ihrsiyqko,283.99,Not Applicable
,,,,,,H57720211224mvfddfxtn,41.00,Not Applicable
,,,,,,H57720211224nvymhsbsj,95.82,Not Applicable
,,,,,,H57720211224tttemuajn,51.32,Not Applicable
,,,,,,H57720211223wwdcdzukq,32.50,Not Applicable
,,,,,,H57720211222dopzovzcs,361.00,Not Applicable
,,,,,,H57720211222zqhscomrp,11.68,Not Applicable
,,,,,,H57720211221eyhnhcunr,-60.00,Not Applicable
,,,,,,H57720211221iwohvhcsc,200.00,Not Applicable
,,,,,,H57720211221jgeokwfuu,5.00,Not Applicable
,,,,,,H57720211221jlnqcoljf,5.00,Not Applicable
,,,,,,H57720211221jvtposqfo,70.00,Not Applicable
,,,,,,H57720211221kfriahfvf,-30.00,Not Applicable
,,,,,,H57720211221kqygyrrtn,698.17,Not Applicable
,,,,,,H57720211221ltrbwmfyq,170.00,Not Applicable
,,,,,,H57720211221oitdcedsu,5.00,Not Applicable
,,,,,,H57720211221okdytmeae,5.00,Not Applicable
,,,,,,H57720211221onungldhw,-60.00,Not Applicable
,,,,,,H57720211221opfpceqqc,11.67,Not Applicable
,,,,,,H57720211221rhxpjfsyx,360.97,Not Applicable
,,,,,,H57720211221rqasaqrec,110.23,Not Applicable
,,,,,,H57720211221salcqxzta,5.00,Not Applicable
,,,,,,H57720211221thtpsfcbe,50.00,Not Applicable
,,,,,,H57720211221vdlimnhni,30.00,Not Applicable
,,,,,,H57720211221vfnolkpou,20.00,Not Applicable
,,,,,,H57720211221vgvnjdgmh,200.00,Not Applicable
,,,,,,H57720211221vwfjpybtl,-30.00,Not Applicable
,,,,,,H57720211221yzluunpcy,50.00,Not Applicable
,,,,,,H57720211218bkbniurkr,180.00,Not Applicable
,,,,,,H57720211218ddrvdfxch,-60.00,Not Applicable
,,,,,,H57720211218egypanxxh,-5.00,Not Applicable
,,,,,,H57720211218fqslhdlvh,150.00,Not Applicable
,,,,,,H57720211218ggxuyjlrx,-30.00,Not Applicable
,,,,,,H57720211218gocrfsspc,5.00,Not Applicable
,,,,,,H57720211218hdctfijgy,-170.00,Not Applicable
,,,,,,H57720211218hjsjiiybx,60.00,Not Applicable
,,,,,,H57720211218hyespejyh,-170.00,Not Applicable
,,,,,,H57720211218idrbfggts,-5.00,Not Applicable
,,,,,,H57720211218idumgtbhw,46.34,Not Applicable
,,,,,,H57720211218qufzpleqe,-170.00,Not Applicable
,,,,,,H57720211218ufpkitvie,-50.00,Not Applicable
,,,,,,H57720211218ufqtrfphc,19.48,Not Applicable
,,,,,,H57720211218uggnxetma,-170.00,Not Applicable
,,,,,,H57720211218uxilbxumw,94.56,Not Applicable
,,,,,,H57720211218vfvvueohj,5.00,Not Applicable
,,,,,,H57720211218vgwtnfpsm,5.00,Not Applicable
,,,,,,H57720211218wdtmtfxtw,17.00,Not Applicable
,,,,,,H57720211218xstwsiwbv,-50.00,Not Applicable
,,,,,,H57720211218yaysmvxvk,-30.00,Not Applicable
,,,,,,H57720211218ykvyorilo,250.00,Not Applicable
,,,,,,H57720211217ddbirpxvr,200.00,Not Applicable
,,,,,,H57720211217eiasiskyk,114.50,Not Applicable
,,,,,,H57720211217fctpewezj,200.00,Not Applicable
,,,,,,H57720211217hyfyqnxab,69.98,Not Applicable
,,,,,,H57720211217kqpbttdnp,32.00,Not Applicable
,,,,,,H57720211217kvijwenjr,60.00,Not Applicable
,,,,,,H57720211217wilwsibpe,100.00,Not Applicable
,,,,,,H57720211217xvmsifdlj,100.00,Not Applicable
,,,,,,H57720211216hleaflymg,186.29,Not Applicable
,,,,,,H57720211216mhzsmglrf,38.26,Not Applicable
,,,,,,H57720211216nzuxlcvgx,-326.87,Not Applicable
,,,,,,H57720211216qwodtmvct,25.73,Not Applicable
,,,,,,H57720211216xpnidzojb,38.26,Not Applicable
,,,,,,H57720211216yvvsptdfi,230.26,Not Applicable
,,,,,,H57720211216zlovvubei,924.00,Not Applicable
,,,,,,H57720211215amwwkqwzg,354.00,Not Applicable
,,,,,,H57720211215nisadbizh,11.50,Not Applicable
,,,,,,H57720211215nxnpmezly,44.00,Not Applicable
,,,,,,H57720211215yrcnwjoly,453.73,Not Applicable
,,,,,,H57720211215yvmpcnxhq,23.49,Not Applicable
,,,,,,H57720211214cdoqhbllm,170.00,Not Applicable
,,,,,,H57720211214glzpempne,52.72,Not Applicable
,,,,,,H57720211214koghohvti,40.00,Not Applicable
,,,,,,H57720211214mfclnhfsw,50.00,Not Applicable
,,,,,,H57720211214mpgrhxeox,21.98,Not Applicable
,,,,,,H57720211214qicvbcxlc,5.00,Not Applicable
,,,,,,H57720211214rxtmrlhww,30.00,Not Applicable
,,,,,,H57720211214syhtpnjgb,92.89,Not Applicable
,,,,,,H57720211214uhumpvpyw,109.70,Not Applicable
,,,,,,H57720211211qimxuccqd,523.75,Not Applicable
,,,,,,H57720211210ckjigwlpw,109.12,Not Applicable
,,,,,,H57720211210ebngmxlxq,94.97,Not Applicable
,,,,,,H57720211210jqhmxrrtp,30.00,Not Applicable
,,,,,,H57720211209dvutiqife,100.82,Not Applicable
,,,,,,H57720211209ethpoqcwh,78.29,Not Applicable
,,,,,,H57720211209gcjpqxsls,57.59,Not Applicable
,,,,,,H57720211209mcwhckvtv,598.80,Not Applicable
,,,,,,H57720211209yrgbcekjd,17.00,Not Applicable
,,,,,,H57720211208ipwxpsyrh,580.38,Not Applicable
,,,,,,H57720211208mjyumxsvj,12.00,Not Applicable
,,,,,,H57720211208sfyousmkg,132.30,Not Applicable
,,,,,,H57720211208svxjmwojn,77.29,Not Applicable
,,,,,,H57720211207cmrjtjnhx,23.99,Not Applicable
,,,,,,H57720211207dyncljjvl,102.13,Not Applicable
,,,,,,H57720211207ebuognukk,31.87,Not Applicable
,,,,,,H57720211207fdstustnb,94.12,Not Applicable
,,,,,,H57720211207fikygneet,7.00,Not Applicable
,,,,,,H57720211207kcmrjoqbl,99.96,Not Applicable
,,,,,,H57720211207mobnidfbj,73.19,Not Applicable
,,,,,,H57720211207mouekpsjx,131.41,Not Applicable
,,,,,,H57720211207plxemsfqm,99.96,Not Applicable
,,,,,,H57720211207pmxpyoarh,7.00,Not Applicable
,,,,,,H57720211207qepblbpsn,7.00,Not Applicable
,,,,,,H57720211207sarynuwbp,7.00,Not Applicable
,,,,,,H57720211207uyvfguvdj,74.97,Not Applicable
,,,,,,H57720211204erymcnnku,-170.00,Not Applicable
,,,,,,H57720211204iwriettwj,61.98,Not Applicable
,,,,,,H57720211204jvbafivef,99.98,Not Applicable
,,,,,,H57720211204lmctmqbbd,-30.00,Not Applicable
,,,,,,H57720211204nrmcfixhm,598.80,Not Applicable
,,,,,,H57720211204nxrzizqlw,-5.00,Not Applicable
,,,,,,H57720211203enynaxzrm,19.53,Not Applicable
